Workbook

Sheet Title
B24: this workbook is unverified and is
B25: provided without any assurances of accuracy

Sheet Nomenclature
B2: Nomenclature

Sheet Glancing Ship
B2: Glancing Ship Collision (Wedge Edge)
B4: Ship Main Parameters | F4: units | G4: Ice Block Parameters | K4: units
C5: Ship Name | D5: SN | E5: test | F5: text
C6: Length | D6: L | E6: 120.0 | F6: m | H6: Length | I6: Le_ice | J6: 30.0 | K6: m | Z6: For other combinations of know angles, use:
C7: Beam | D7: B | E7: 20.00 | F7: m | H7: Beam | I7: Be_ice | J7: 30.0 | K7: m
C8: Draft | D8: T | E8: 5.00 | F8: m | H8: Ice thickness | I8: He_ice | J8: 1.0 | K8: m
C9: Height | D9: H | E9: 12.00 | F9: m | H9: Density | I9: D_ice | J9: 900.0 | K9: Kg/m3 | Y9: a | Z9: and | AA9: a | AB9: and | AC9: a | AD9: and | AE9: b | AF9: and
C10: Block Coef. | D10: CB | E10: 0.8 | F10: nd | Y10: b | Z10: known | AA10: b' | AB10: known | AC10: g | AD10: known | AE10: g | AF10: known
C11: Waterplane Coef | D11: Cwp | E11: 0.8 | F11: nd | H11: Block Coef. | I11: CB_ice | J11: 1.000 | K11: nd | Y11: a | Z11: 22 | AA11: a | AB11: 22 | AC11: a | AD11: 22 | AE11: a | AF11: =AF15/deg -> 22.000
C12: Midship Coefficient | D12: Cm | E12: 0.9 | F12: nd | H12: Waterplane Coef | I12: Cwp_ice | J12: 1.000 | K12: nd | Y12: b | Z12: 40.9 | AA12: b | AB12: =AB16/deg -> 40.907 | AC12: b | AD12: =AD16/deg -> 40.907 | AE12: b | AF12: 40.907
C13: Mass | D13: M | E13: =Loa*B*T*CB*1.025 -> 9840 | F13: tonnes | H13: Midship Coefficient | I13: Cm_ice | J13: 1.000 | K13: nd | Y13: b' | Z13: =Z17/deg -> 38.777 | AA13: b' | AB13: 38.777 | AC13: b' | AD13: =AD17/deg -> 38.777 | AE13: b' | AF13: =AF17/deg -> 38.77664
C14: Initial Values | H14: Mass | I14: Ma_ice | J14: =J6*J7*J8*J9*J11*0.001 -> 810 | K14: tonnes | Y14: g | Z14: =Z18/deg -> 65.000 | AA14: g | AB14: =AB18/deg -> 65.000 | AC14: g | AD14: 65 | AE14: g | AF14: 65
C15: Ship Speed | D15: Vs | E15: 4.0000 | F15: m/s | I15: = | J15: =J14*0.0098 -> 7.938 | K15: MN | M15: Infinite Ice Scenario | Y15: a | Z15: =Z11*deg -> 0.3840 | AA15: a | AB15: =AB11*deg -> 0.3840 | AC15: a | AD15: =AD11*deg -> 0.3840 | AE15: a | AF15: =ATAN(TAN(AF16)/TAN(AF18)) -> 0.3840
C16: sway speed | D16: Vy | E16: 0.0000 | F16: m/s | Y16: b | Z16: =Z12*deg -> 0.7140 | AA16: b | AB16: =ATAN(TAN(AB17)/COS(AB15)) -> 0.7140 | AC16: b | AD16: =ATAN(TAN(AD15)*TAN(AD18)) -> 0.7140 | AE16: b | AF16: =AF12*deg -> 0.7140
C17: heave speed | D17: Vz | E17: 0.0000 | F17: m/s | Y17: b' | Z17: =ATAN(TAN(Z16)*COS(Z15)) -> 0.6768 | AA17: b' | AB17: =AB13*deg -> 0.6768 | AC17: b' | AD17: =ATAN(TAN(AD16)*COS(AD15)) -> 0.6768 | AE17: b' | AF17: =ATAN(TAN(AF16)*COS(AF15)) -> 0.6768
C18: roll speed | D18: Vrol | E18: 0.0000 | F18: rad/s | Y18: g | Z18: =ATAN(TAN(Z16)/TAN(Z15)) -> 1.1345 | AA18: g | AB18: =ATAN(TAN(AB16)/TAN(AB15)) -> 1.1345 | AC18: g | AD18: =AD14*deg -> 1.1345 | AE18: g | AF18: =AF14*deg -> 1.1345
C19: Pitch speed | D19: Vpit | E19: 0.0000 | F19: rad/s
C20: Yaw Speed | D20: Vyaw | E20: 0.0000 | F20: rad/s
B23: Hull Angles and coordinates
C24: Alpha | D24: a | E24: 25 | F24: deg
C25: Beta | D25: b | E25: =E29/deg -> 32.499 | F25: deg
C26: Beta prime | D26: b' | E26: 30.000 | F26: deg
C27: gamma | D27: g | E27: =E31/deg -> 53.796 | F27: deg
C28: Alpha | D28: a | E28: =E24*deg -> 0.4363 | F28: rad
C29: Beta | D29: b | E29: =ATAN(TAN(E30)/COS(E28)) -> 0.5672 | F29: rad | M29: Finite Ice Floe Scenario
C30: Beta prime | D30: b' | E30: =E26*deg -> 0.5236 | F30: rad
C31: gamma | D31: g | E31: =ATAN(TAN(E29)/TAN(E28)) -> 0.9389 | F31: rad
C34: x coordinate | D34: x | E34: 50.0 | F34: m | H34: x coordinate | I34: x_ice | J34: =-Le_ice*0.5 -> -15.0 | K34: m
C35: y coordinate | D35: y | E35: 5.0 | F35: m | H35: y coordinate | I35: y_ice | J35: =-0.5*Be_ice -> -15.0 | K35: m
C36: z coordinate | D36: z | E36: 0 | F36: m | H36: z coordinate | I36: z_ice | J36: 0 | K36: m
B38: Ice Crushing Terms
C39: Ice strength term | D39: Po | E39: 6 | F39: Mpa
C40: Ice exponent (process PA) | D40: ex | E40: -0.1 | F40: nd
C41: Wedge angle | D41: f | E41: 170 | F41: deg
C42: Wedge angle | D42: f | E42: =E41*deg -> 2.97 | F42: rad
C43: Ice Thickness | D43: hi | E43: =He_ice -> 1.00 | F43: m
C44: Ice flex. Strength | D44: sf | E44: 1.00 | F44: MPa
C45: form factor 1 | D45: fx | E45: =3+2*ex -> 2.80 | F45: nd
C46: form factor 2 | D46: fa | E46: =(TAN(f/2)/((COS(betp))^2*SIN(betp)))^(1+ex) -> 21.66 | F46: nd
C47: Flexural for limit | D47: Ff | E47: =1.2*44:44*43:43^2/SIN(betp) -> 2.40 | F47: MN | M47: Indentation Geometry
C48: Flex limit on pen | D48: znlim | E48: =(47:47/(Po*fa))^(1/(fx-1)) -> 0.11 | F48: m
B50: Popov Terms for ship | G50: Popov Terms for ice
C51: x dirn cosine | D51: l | E51: =SIN(a)*COS(betp) -> 0.3660 | F51: nd | H51: x dirn cosine | I51: l_ice | J51: =-SIN(a)*COS(betp) -> -0.3660 | K51: nd
C52: y dirn cosine | D52: m | E52: =COS(a)*COS(betp) -> 0.7849 | F52: nd | H52: y dirn cosine | I52: m_ice | J52: =-COS(a)*COS(betp) -> -0.7849 | K52: nd
C53: z dirn cosine | D53: n | E53: =SIN(betp) -> 0.5000 | F53: nd | H53: z dirn cosine | I53: n_ice | J53: =-SIN(betp) -> -0.5000 | K53: nd
C55: roll moment arm | D55: ll | E55: =n_*y-m_*z -> 2.5000 | F55: m | H55: roll moment arm | I55: ll_ice | J55: =n_ice*y_ice-m_ice*z_ice -> 7.500 | K55: m
C56: pitch moment arm | D56: ml | E56: =l_*z-n_*x -> -25.0000 | F56: m | H56: pitch moment arm | I56: ml_ice | J56: =l_ice*z_ice-n_ice*x_ice -> -7.500 | K56: m
C57: yaw moment arm | D57: hl | E57: =m_*x-l_*y -> 37.4143 | F57: m | H57: yaw moment arm | I57: hl_ice | J57: =m_ice*x_ice-l_ice*y_ice -> 6.283 | K57: m
C59: Surge Added Mass | D59: Amx | E59: =0 -> 0.0000 | F59: nd | H59: Surge Added Mass | I59: Amx_ice | J59: 0.100 | K59: nd
C60: Sway Added Mass | D60: Amy | E60: =2*T/B -> 0.5000 | F60: nd | H60: Sway Added Mass | I60: Amy_ice | J60: 0.100 | K60: nd
C61: Heave Added Mass | D61: Amz | E61: =2/3*(B*Cwp^2)/(T*(CB*(1+Cwp))) -> 1.1852 | F61: nd | H61: Heave Added Mass | I61: Amz_ice | J61: 10.000 | K61: nd
C62: Roll Added Mass | D62: Amrol | E62: =0.25 -> 0.2500 | F62: nd | H62: Roll Added Mass | I62: Amrol_ice | J62: 12.000 | K62: nd
C63: Pitch Added Mass | D63: Ampit | E63: =B/(T*(3-2*Cwp)*(3-Cwp)) -> 1.2987 | F63: nd | H63: Pitch Added Mass | I63: Ampit_ice | J63: 12.000 | K63: nd
C64: Yaw Added Mass | D64: Amyaw | E64: =0.3+0.05*Loa/B -> 0.6000 | F64: nd | H64: Yaw Added Mass | I64: Amyaw_ice | J64: 0.100 | K64: nd
C66: roll gyrad(squared) | D66: rx2 | E66: =Cwp*B^2/(11.4*Cm)+H^2/12 -> 43.1891 | F66: m2 | H66: roll gyrad(squared) | I66: rx2_ice | J66: =Cwp_ice*Be_ice^2/(11.4*Cm_ice)+He_ice^2/12 -> 79.031 | K66: m2
C67: pitch gyrad(squared) | D67: ry2 | E67: =0.07*Cwp*Loa^2 -> 806.40 | F67: m2 | H67: pitch gyrad(squared) | I67: ry2_ice | J67: =0.07*Cwp_ice*Le_ice^2 -> 63.000 | K67: m2
C68: yaw gyrad(squared) | D68: rz2 | E68: =Loa^2/16 -> 900.00 | F68: m2 | H68: yaw gyrad(squared) | I68: rz2_ice | J68: =Le_ice^2/16 -> 56.250 | K68: m2
C70: Mass Reduction Coef. | D70: Co | E70: =l_^2/(1+Amx)+m_^2/(1+Amy)+n_^2/(1+Amz)+ll^2/(_rx2*(1+Amrol))+ml^2/(_ry2*(1+Ampit))+hl^2/(_rz2*(1+Amyaw)) -> 2.0841 | F70: nd | H70: Mass Reduction Coef. | I70: Co_ice | J70: =l_ice^2/(1+Amx_ice)+m_ice^2/(1+Amy_ice)+n_ice^2/(1+Amz_ice)+ll_ice^2/(rx2_ice*(1+Amrol_ice))+ml_ice^2/(ry2_ice*(1+Ampit_ice))+hl_ice^2/(rz2_ice*(1+Amyaw_ice)) -> 1.466 | K70: nd
C71: Effective mass | D71: Me | E71: =M/Co*1000 -> 4.721E+06 | F71: kg | H71: Effective mass | I71: Me_ice | J71: =Ma_ice/Co_ice*1000 -> 5.525E+05 | K71: kg
C72: Normal Speed | D72: Ve | E72: =l_*(Vs+Vpit*z-Vyaw*y)+m_*(Vy+Vyaw*x-Vrol*z)+n_*(Vz+Vrol*y-Vpit*x) -> 1.464 | F72: m/s
C73: Kinetic Energy | D73: KEe | E73: =Me/2*Ve^2 -> 5059694 | F73: kg-m2/s2
C74: Impulse | D74: Ie | E74: =Me*(Ve-Ve_c)*E84 -> 7.761E+04 | F74: kg-m/s
C76: Normal Speed after collision | D76: Ve_c | E76: =Ve*Me/(Me+Me_ice) -> 1.311 | F76: m/s
C77: Effective_mass for collision | D77: Me_c | E77: =1/(1/Me+1/Me_ice) -> 494,628 | F77: kg
C78: Kinetic Energy for collision | D78: KEe_c | E78: =Me_c/2*Ve^2 -> 5.301E+05 | F78: kg-m2/s2
B81: Results
C82: pen(crush) | D82: zc | E82: =(KEe_c*fx/Po/1000000/fa)^(1/fx) -> 0.202 | F82: m
C83: Crush Force | D83: Fc | E83: =Po*fa*E82^(fx-1) -> 7.331 | F83: MN
C84: Impusle Fraction | D84: k_imp | E84: =(E86/E83)^2 -> 0.107 | G84: new - calcs impulse to 1st flex failure assumes lin force-time
C85: pen(n) | D85: zn | E85: =MIN((KEe_c*fx/Po/1000000/fa)^(1/fx),E48) -> 0.109 | F85: m
C86: Normal Force | D86: Fn | E86: =Po*fa*E85^(fx-1) -> 2.400 | F86: MN | G86: Flex Failure if Blue | I86: =(E86-P76)/E86 -> 100% | J86: difference
C87: Average Pressure | D87: Pav | E87: =E86/(E89*E90/2) -> 6.643 | F87: Mpa
C89: width of patch | D89: w | E89: =2*E85*TAN(f/2)/COS(E30) -> 2.874 | F89: m
C90: Height of patch | D90: h | E90: =E85/(SIN(E30)*COS(E30)) -> 0.251 | F90: m
C91: Aspect Ratio | E91: =2*TAN(f/2)/COS(E30)*((SIN(E30)*COS(E30))) -> 11.430
C92: FE Patch values
C93: width of patch | D93: wd | E93: =(0.7071*E89)^0.7 -> 1.643 | I93: =(E93-P80)/E93 -> 100% | J93: difference
C94: Height of patch | D94: hd | E94: =E93/E91 -> 0.144 | I94: =(E94-P81)/E94 -> 100% | J94: difference
C95: Area | D95: Ad | E95: =E93*E94 -> 0.236
C96: Force | D96: F | E96: =E86 -> 2.400
C97: Line Load | D97: Q | E97: =E96/E93 -> 1.461
C98: Patch pressure | D98: Pd | E98: =E86/E95 -> 10.166 | I98: =(E98-P79)/E98 -> 100% | J98: difference
E99: =E93/E94 -> 11.430
C100: Changes in CG Velocities
C101: Ship Speed | D101: dVx | E101: =-l_*Ie/(M*1000*(1+Amx)) -> -0.0029 | F101: m/s
C102: sway speed | D102: dVy | E102: =-m_*Ie/(M*1000*(1+Amy)) -> -0.0041 | F102: m/s
C103: heave speed | D103: dVz | E103: =-n_*Ie/(M*1000*(1+Amz)) -> -0.0018 | F103: m/s
C104: roll speed | D104: dVrol | E104: =-Ie*ll/(M*_rx2*1000*(1+Amrol)) -> -0.0004 | F104: rad/s
C105: Pitch speed | D105: dVpit | E105: =-Ie*ml/(M*_ry2*1000*(1+Ampit)) -> 0.0001 | F105: rad/s
C106: Yaw Speed | D106: dVyaw | E106: =-Ie*hl/(M*_rz2*1000*(1+Amyaw)) -> -0.0002 | F106: rad/s
C108: Post Impact Velocities
C109: Ship Speed | D109: Vs | E109: =E15+E101 -> 3.9971 | F109: m/s | G109: unchanged for input in reflected collision
C110: sway speed | D110: Vy | E110: -0.0041 | F110: m/s | G110: Can be reversed or set to zero for input
C111: heave speed | D111: Vz | E111: -0.0018 | F111: m/s | G111: "
C112: roll speed | D112: Vrol | E112: -0.0004 | F112: rad/s | G112: "
C113: Pitch speed | D113: Vpit | E113: 0.0001 | F113: rad/s | G113: "
C114: Yaw Speed | D114: Vyaw | E114: -0.0002 | F114: rad/s | G114: "
B116: Deg to rad
B117: =PI()/180 -> 0.01745329252
B120: Time History of Force
C121: sec | D121: t | E121: 0 | F121: =E121+step -> 0.01 | G121: 0.02 | H121: 0.03 | I121: 0.04 | J121: 0.05 | K121: 0.06 | L121: 0.07 | M121: 0.08 | N121: 0.09 | O121: 0.1 | P121: 0.11 | Q121: 0.12 | R121: 0.13 | S121: 0.14 | T121: 0.15 | U121: 0.16 | V121: 0.17 | W121: 0.18 | X121: 0.19 | Y121: 0.2 | Z121: 0.21 | AA121: 0.22 | AB121: 0.23 | AC121: 0.24 | AD121: 0.25 | AE121: 0.26 | AF121: 0.27 | AG121: 0.28 | AH121: 0.29 | AI121: 0.3 | AJ121: 0.31 | AK121: 0.32 | AL121: =AK121+step -> 0.33 | AM121: 0.34 | AN121: 0.35 | AO121: 0.36 | AP121: 0.37 | AQ121: 0.38 | AR121: 0.39 | AS121: 0.4 | AT121: 0.41 | AU121: 0.42 | AV121: 0.43 | AW121: 0.44 | AX121: 0.45 | AY121: 0.46 | AZ121: 0.47 | BA121: 0.48 | BB121: 0.49 | BC121: 0.5 | BD121: 0.51 | BE121: 0.52 | BF121: 0.53 | BG121: 0.54 | BH121: 0.55 | BI121: 0.56 | BJ121: 0.57 | BK121: 0.58 | BL121: 0.59 | BM121: 0.6 | BN121: =BM121+step -> 0.61 | BO121: 0.62 | BP121: 0.63 | BQ121: 0.64 | BR121: 0.65 | BS121: 0.66 | BT121: 0.67 | BU121: 0.68 | BV121: 0.69 | BW121: =BV121+step -> 0.7 | BX121: 0.71 | BY121: 0.72 | BZ121: 0.73 | CA121: 0.74 | CB121: 0.75 | CC121: 0.76 | CD121: 0.77
C122: m | D122: x_ship | E122: 0 | F122: =IF(E125<=Ve_c,0,E122+(E125+fxx(E124, Me, Po*1000000, fa, fx)*step/2)*step) -> 0.0146 | G122: =IF(F125<=Ve_c,0,F122+(F125+fxx(F124, Me, Po*1000000, fa, fx)*step/2)*step) -> 0.0293 | H122: 0.0439 | I122: 0.0585 | J122: 0.0731 | K122: 0.0877 | L122: 0.1023 | M122: 0.1168 | N122: 0.1312 | O122: 0.1456 | P122: 0.1599 | Q122: 0.1741 | R122: 0.1883 | S122: 0.2022 | T122: 0.2161 | U122: 0.2299 | V122: 0.2435 | W122: 0.2569 | X122: 0.2702 | Y122: 0.2833 | Z122: 0.0000 | AA122: 0.0000 | AB122: 0.0000 | AC122: 0.0000 | AD122: 0.0000 | AE122: 0.0000 | AF122: 0.0000 | AG122: 0.0000 | AH122: 0.0000 | AI122: 0.0000 | AJ122: 0.0000 | AK122: 0.0000 | AL122: 0.0000 | AM122: 0.0000 | AN122: 0.0000 | AO122: 0.0000 | AP122: 0.0000 | AQ122: 0.0000 | AR122: 0.0000 | AS122: 0.0000 | AT122: 0.0000 | AU122: 0.0000 | AV122: 0.0000 | AW122: 0.0000 | AX122: 0.0000 | AY122: 0.0000 | AZ122: 0.0000 | BA122: 0.0000 | BB122: 0.0000 | BC122: 0.0000 | BD122: 0.0000 | BE122: 0.0000 | BF122: 0.0000 | BG122: 0.0000 | BH122: 0.0000 | BI122: 0.0000 | BJ122: 0.0000 | BK122: 0.0000 | BL122: 0.0000 | BM122: 0.0000 | BN122: =IF(BM125<=Ve_c,0,BM122+(BM125+fxx(BM124, Me, Po*1000000, fa, fx)*step/2)*step) -> 0.0000 | BO122: 0.0000 | BP122: 0.0000 | BQ122: 0.0000 | BR122: 0.0000 | BS122: 0.0000 | BT122: 0.0000 | BU122: 0.0000 | BV122: 0.0000 | BW122: =IF(BV125<=Ve_c,0,BV122+(BV125+fxx(BV124, Me, Po*1000000, fa, fx)*step/2)*step) -> 0.0000 | BX122: 0.0000 | BY122: 0.0000 | BZ122: 0.0000 | CA122: 0.0000 | CB122: 0.0000 | CC122: 0.0000 | CD122: 0.0000
C123: m | D123: x_ice | E123: 0 | F123: =IF(E125<=Ve_c,0,E123+(E126-fxx(E124, Me_ice, Po*1000000, fa, fx)*step/2)*step) -> 0 | G123: =IF(F125<=Ve_c,0,F123+(F126-fxx(F124, Me_ice, Po*1000000, fa, fx)*step/2)*step) -> 9.235651909e-06 | H123: 5.735826542e-05 | I123: 0.0001883101646 | J123: 0.0004590905866 | K123: 0.0009384751047 | L123: 0.001705648305 | M123: 0.002848663233 | N123: 0.004462682521 | O123: 0.00664798653 | P123: 0.009507758667 | Q123: 0.01314568 | R123: 0.01766338501 | S123: 0.02315784741 | T123: 0.02971877874 | U123: 0.03742613169 | V123: 0.04634780421 | W123: 0.05653763856 | X123: 0.0680338016 | Y123: 0.08085761873 | Z123: 0 | AA123: 0 | AB123: 0 | AC123: 0 | AD123: 0 | AE123: 0 | AF123: 0 | AG123: 0 | AH123: 0 | AI123: 0 | AJ123: 0 | AK123: 0 | AL123: 0 | AM123: 0 | AN123: 0 | AO123: 0 | AP123: 0 | AQ123: 0 | AR123: 0 | AS123: 0 | AT123: 0 | AU123: 0 | AV123: 0 | AW123: 0 | AX123: 0 | AY123: 0 | AZ123: 0 | BA123: 0 | BB123: 0 | BC123: 0 | BD123: 0 | BE123: 0 | BF123: 0 | BG123: 0 | BH123: 0 | BI123: 0 | BJ123: 0 | BK123: 0 | BL123: 0 | BM123: 0 | BN123: =IF(BM125<=Ve_c,0,BM123+(BM126-fxx(BM124, Me_ice, Po*1000000, fa, fx)*step/2)*step) -> 0 | BO123: 0 | BP123: 0 | BQ123: 0 | BR123: 0 | BS123: 0 | BT123: 0 | BU123: 0 | BV123: 0 | BW123: =IF(BV125<=Ve_c,0,BV123+(BV126-fxx(BV124, Me_ice, Po*1000000, fa, fx)*step/2)*step) -> 0 | BX123: 0 | BY123: 0 | BZ123: 0 | CA123: 0 | CB123: 0 | CC123: 0 | CD123: 0
C124: m | D124: Pen(n) | E124: =E122-E123 -> 0 | F124: 0.01463992603 | G124: 0.02926953565 | H124: 0.04385570771 | I124: 0.05834935773 | J124: 0.07268681637 | K124: 0.08679125986 | L124: 0.1005742374 | M124: 0.1139373918 | N124: 0.1267744245 | O124: 0.1389733203 | P124: 0.150418821 | Q124: 0.1609951128 | R124: 0.1705886679 | S124: 0.1790911645 | T124: 0.1864023929 | U124: 0.1924330445 | V124: 0.1971072757 | W124: 0.2003649436 | X124: 0.202163415 | Y124: 0.2024788691 | Z124: 0 | AA124: 0 | AB124: 0 | AC124: 0 | AD124: 0 | AE124: 0 | AF124: 0 | AG124: 0 | AH124: 0 | AI124: 0 | AJ124: 0 | AK124: =AK122-AK123 -> 0 | AL124: 0 | AM124: 0 | AN124: 0 | AO124: 0 | AP124: 0 | AQ124: 0 | AR124: 0 | AS124: 0 | AT124: 0 | AU124: 0 | AV124: 0 | AW124: 0 | AX124: 0 | AY124: 0 | AZ124: 0 | BA124: 0 | BB124: 0 | BC124: 0 | BD124: 0 | BE124: 0 | BF124: 0 | BG124: 0 | BH124: 0 | BI124: 0 | BJ124: 0 | BK124: 0 | BL124: 0 | BM124: 0 | BN124: 0 | BO124: 0 | BP124: 0 | BQ124: =BQ122-BQ123 -> 0 | BR124: 0 | BS124: 0 | BT124: 0 | BU124: 0 | BV124: 0 | BW124: 0 | BX124: 0 | BY124: 0 | BZ124: 0 | CA124: 0 | CB124: 0 | CC124: 0 | CD124: 0
C125: m/s | D125: v_ship | E125: =Ve -> 1.463992603 | F125: =IF(E125<=Ve_c,Ve_c,E125+fxx(E124+(E125-E126)/2*step, Me, Po*1000000, fa, fx)*step) -> 1.463953175 | G125: =IF(F125<=Ve_c,Ve_c,F125+fxx(F124+(F125-F126)/2*step, Me, Po*1000000, fa, fx)*step) -> 1.463668364 | H125: 1.462954852 | I125: 1.461650943 | J125: 1.459611033 | K125: 1.456705189 | L125: 1.452820555 | M125: 1.447863614 | N125: 1.441762826 | O125: 1.434471284 | P125: 1.42596914 | Q125: 1.416265528 | R125: 1.405399779 | S125: 1.393441758 | T125: 1.380491168 | U125: 1.366675756 | V125: 1.352148404 | W125: 1.33708317 | X125: 1.321670391 | Y125: 1.30611106 | Z125: 1.31062237 | AA125: 1.31062237 | AB125: 1.31062237 | AC125: 1.31062237 | AD125: 1.31062237 | AE125: 1.31062237 | AF125: 1.31062237 | AG125: 1.31062237 | AH125: 1.31062237 | AI125: 1.31062237 | AJ125: 1.31062237 | AK125: 1.31062237 | AL125: 1.31062237 | AM125: 1.31062237 | AN125: 1.31062237 | AO125: 1.31062237 | AP125: 1.31062237 | AQ125: 1.31062237 | AR125: 1.31062237 | AS125: 1.31062237 | AT125: 1.31062237 | AU125: 1.31062237 | AV125: 1.31062237 | AW125: 1.31062237 | AX125: 1.31062237 | AY125: 1.31062237 | AZ125: 1.31062237 | BA125: 1.31062237 | BB125: 1.31062237 | BC125: 1.31062237 | BD125: 1.31062237 | BE125: 1.31062237 | BF125: 1.31062237 | BG125: 1.31062237 | BH125: 1.31062237 | BI125: 1.31062237 | BJ125: 1.31062237 | BK125: 1.31062237 | BL125: 1.31062237 | BM125: 1.31062237 | BN125: 1.31062237 | BO125: 1.31062237 | BP125: 1.31062237 | BQ125: 1.31062237 | BR125: 1.31062237 | BS125: =IF(BR125<=Ve_c,Ve_c,BR125+fxx(BR124+(BR125-BR126)/2*step, Me, Po*1000000, fa, fx)*step) -> 1.31062237 | BT125: 1.31062237 | BU125: 1.31062237 | BV125: 1.31062237 | BW125: 1.31062237 | BX125: 1.31062237 | BY125: 1.31062237 | BZ125: 1.31062237 | CA125: 1.31062237 | CB125: 1.31062237 | CC125: 1.31062237 | CD125: 1.31062237
C126: m/s | D126: v_ice | E126: 0 | F126: =IF(E125<=Ve_c,Ve_c,E126-fxx(E124+(E125-E126)/2*step, Me_ice, Po*1000000, fa, fx)*step) -> 0.0003369321846 | G126: =IF(F125<=Ve_c,Ve_c,F126-fxx(F124+(F125-F126)/2*step, Me_ice, Po*1000000, fa, fx)*step) -> 0.002770781939 | H126: 0.008868080119 | I126: 0.02001061326 | J126: 0.03744262462 | K126: 0.06227445696 | L126: 0.09547052448 | M126: 0.1378299632 | N126: 0.1899641351 | O126: 0.2522738625 | P126: 0.3249287659 | Q126: 0.4078508021 | R126: 0.5007038491 | S126: 0.6028908833 | T126: 0.7135599 | U126: 0.8316192418 | V126: 0.9557624461 | W126: 1.084502114 | X126: 1.216211715 | Y126: 1.349173677 | Z126: 1.31062237 | AA126: 1.31062237 | AB126: 1.31062237 | AC126: 1.31062237 | AD126: 1.31062237 | AE126: 1.31062237 | AF126: 1.31062237 | AG126: 1.31062237 | AH126: 1.31062237 | AI126: 1.31062237 | AJ126: 1.31062237 | AK126: 1.31062237 | AL126: 1.31062237 | AM126: 1.31062237 | AN126: 1.31062237 | AO126: 1.31062237 | AP126: 1.31062237 | AQ126: 1.31062237 | AR126: 1.31062237 | AS126: 1.31062237 | AT126: 1.31062237 | AU126: 1.31062237 | AV126: 1.31062237 | AW126: 1.31062237 | AX126: 1.31062237 | AY126: 1.31062237 | AZ126: 1.31062237 | BA126: 1.31062237 | BB126: 1.31062237 | BC126: 1.31062237 | BD126: 1.31062237 | BE126: 1.31062237 | BF126: 1.31062237 | BG126: 1.31062237 | BH126: 1.31062237 | BI126: 1.31062237 | BJ126: 1.31062237 | BK126: 1.31062237 | BL126: 1.31062237 | BM126: 1.31062237 | BN126: 1.31062237 | BO126: 1.31062237 | BP126: 1.31062237 | BQ126: 1.31062237 | BR126: 1.31062237 | BS126: =IF(BR125<=Ve_c,Ve_c,BR126-fxx(BR124+(BR125-BR126)/2*step, Me_ice, Po*1000000, fa, fx)*step) -> 1.31062237 | BT126: 1.31062237 | BU126: 1.31062237 | BV126: 1.31062237 | BW126: 1.31062237 | BX126: 1.31062237 | BY126: 1.31062237 | BZ126: 1.31062237 | CA126: 1.31062237 | CB126: 1.31062237 | CC126: 1.31062237 | CD126: 1.31062237
C127: m/s2 | D127: a_ship | E127: =fxx(E124, Me, Po*1000000, fa, fx) -> 0 | F127: =fxx(F124, Me, Po*1000000, fa, fx) -> -0.01372966664 | G127: =fxx(G124, Me, Po*1000000, fa, fx) -> -0.04777915916 | H127: -0.09893205421 | I127: -0.1654074049 | J127: -0.2456462675 | K127: -0.3380234195 | L127: -0.4407234416 | M127: -0.5516826129 | N127: -0.6685701312 | O127: -0.7887994236 | P127: -0.9095653945 | Q127: -1.027904698 | R127: -1.140775864 | S127: -1.245155217 | T127: -1.338143454 | U127: -1.41707676 | V127: -1.479635641 | W127: -1.523944439 | X127: -1.548654795 | Y127: -1.553007223 | Z127: 0 | AA127: 0 | AB127: 0 | AC127: 0 | AD127: 0 | AE127: 0 | AF127: 0 | AG127: 0 | AH127: 0 | AI127: 0 | AJ127: 0 | AK127: 0 | AL127: 0 | AM127: 0 | AN127: 0 | AO127: 0 | AP127: 0 | AQ127: 0 | AR127: 0 | AS127: 0 | AT127: 0 | AU127: 0 | AV127: 0 | AW127: 0 | AX127: 0 | AY127: 0 | AZ127: 0 | BA127: 0 | BB127: 0 | BC127: 0 | BD127: 0 | BE127: 0 | BF127: 0 | BG127: 0 | BH127: 0 | BI127: 0 | BJ127: 0 | BK127: 0 | BL127: 0 | BM127: 0 | BN127: =fxx(BN124, Me, Po*1000000, fa, fx) -> 0 | BO127: 0 | BP127: 0 | BQ127: 0 | BR127: 0 | BS127: 0 | BT127: 0 | BU127: 0 | BV127: 0 | BW127: =fxx(BW124, Me, Po*1000000, fa, fx) -> 0 | BX127: 0 | BY127: 0 | BZ127: 0 | CA127: 0 | CB127: 0 | CC127: 0 | CD127: 0
C128: m/s2 | D128: a_ice | E128: =-fxx(E124, Me_ice, Po*1000000, fa, fx) -> 0 | F128: =-fxx(F124, Me_ice, Po*1000000, fa, fx) -> 0.1173266012 | G128: =-fxx(G124, Me_ice, Po*1000000, fa, fx) -> 0.4082958825 | H128: 0.8454219598 | I128: 1.413485786 | J128: 2.099165437 | K128: 2.888572607 | L128: 3.766193664 | M128: 4.71439312 | N128: 5.713253152 | O128: 6.74067025 | P128: 7.772673523 | Q128: 8.783939759 | R128: 9.748478129 | S128: 10.64044987 | T128: 11.43507906 | U128: 12.1096021 | V128: 12.64419781 | W128: 13.02283779 | X128: 13.23399966 | Y128: 13.27119325 | Z128: 0 | AA128: 0 | AB128: 0 | AC128: 0 | AD128: 0 | AE128: 0 | AF128: 0 | AG128: 0 | AH128: 0 | AI128: 0 | AJ128: 0 | AK128: 0 | AL128: 0 | AM128: 0 | AN128: 0 | AO128: 0 | AP128: 0 | AQ128: 0 | AR128: 0 | AS128: 0 | AT128: 0 | AU128: 0 | AV128: 0 | AW128: 0 | AX128: 0 | AY128: 0 | AZ128: 0 | BA128: 0 | BB128: 0 | BC128: 0 | BD128: 0 | BE128: 0 | BF128: 0 | BG128: 0 | BH128: 0 | BI128: 0 | BJ128: 0 | BK128: 0 | BL128: 0 | BM128: 0 | BN128: =-fxx(BN124, Me_ice, Po*1000000, fa, fx) -> 0 | BO128: 0 | BP128: 0 | BQ128: 0 | BR128: 0 | BS128: 0 | BT128: 0 | BU128: 0 | BV128: 0 | BW128: =-fxx(BW124, Me_ice, Po*1000000, fa, fx) -> 0 | BX128: 0 | BY128: 0 | BZ128: 0 | CA128: 0 | CB128: 0 | CC128: 0 | CD128: 0
C129: MN | D129: Ft | E129: =-E127*Me/1000000 -> 0 | F129: =-F127*Me/1000000 -> 0.06482409968 | G129: 0.2255874857 | H129: 0.4671039373 | I129: 0.7809647815 | J129: 1.159809524 | K129: 1.59596474 | L129: 2.080858994 | M129: 2.604748508 | N129: 3.156628487 | O129: 3.724286526 | P129: 4.294478472 | Q129: 4.853213001 | R129: 5.386129925 | S129: 5.878953076 | T129: 6.317993508 | U129: 6.690674114 | V129: 6.986043493 | W129: 7.1952458 | X129: 7.31191481 | Y129: 7.332464634 | Z129: 0 | AA129: 0 | AB129: 0 | AC129: 0 | AD129: 0 | AE129: 0 | AF129: 0 | AG129: 0 | AH129: 0 | AI129: 0 | AJ129: 0 | AK129: =-AK127*Me/1000000 -> 0 | AL129: 0 | AM129: 0 | AN129: 0 | AO129: 0 | AP129: 0 | AQ129: 0 | AR129: 0 | AS129: 0 | AT129: 0 | AU129: 0 | AV129: 0 | AW129: 0 | AX129: 0 | AY129: 0 | AZ129: 0 | BA129: 0 | BB129: 0 | BC129: 0 | BD129: 0 | BE129: 0 | BF129: 0 | BG129: 0 | BH129: 0 | BI129: 0 | BJ129: 0 | BK129: 0 | BL129: 0 | BM129: 0 | BN129: 0 | BO129: 0 | BP129: 0 | BQ129: =-BQ127*Me/1000000 -> 0 | BR129: 0 | BS129: 0 | BT129: 0 | BU129: 0 | BV129: 0 | BW129: 0 | BX129: 0 | BY129: 0 | BZ129: 0 | CA129: 0 | CB129: 0 | CC129: 0 | CD129: 0
D130: dMom | E130: =(E129+F129)*step/2 -> 0.0003241204984 | F130: =IF(G129=0,0,(F129+G129)*step/2) -> 0.001452057927 | G130: 0.003463457115 | H130: 0.006240343594 | I130: 0.009703871528 | J130: 0.01377887132 | K130: 0.01838411867 | L130: 0.02342803751 | M130: 0.02880688498 | N130: 0.03440457507 | O130: 0.04009382499 | P130: 0.04573845736 | Q130: 0.05119671463 | R130: 0.056325415 | S130: 0.06098473292 | T130: 0.06504333811 | U130: 0.06838358804 | V130: 0.07090644646 | W130: 0.07253580305 | X130: 0.07322189722 | Y130: 0 | Z130: 0 | AA130: 0 | AB130: 0 | AC130: 0 | AD130: 0 | AE130: 0 | AF130: 0 | AG130: 0 | AH130: 0 | AI130: 0 | AJ130: 0 | AK130: 0 | AL130: =IF(AM129=0,0,(AL129+AM129)*step/2) -> 0 | AM130: 0 | AN130: 0 | AO130: 0 | AP130: 0 | AQ130: 0 | AR130: 0 | AS130: 0 | AT130: 0 | AU130: 0 | AV130: 0 | AW130: 0 | AX130: 0 | AY130: 0 | AZ130: 0 | BA130: 0 | BB130: 0 | BC130: 0 | BD130: 0 | BE130: 0 | BF130: 0 | BG130: 0 | BH130: 0 | BI130: 0 | BJ130: 0 | BK130: 0 | BL130: 0 | BM130: 0 | BN130: 0 | BO130: 0 | BP130: 0 | BQ130: 0 | BR130: =IF(BS129=0,0,(BR129+BS129)*step/2) -> 0 | BS130: 0 | BT130: 0 | BU130: 0 | BV130: 0 | BW130: 0 | BX130: 0 | BY130: 0 | BZ130: 0 | CA130: 0 | CB130: 0 | CC130: 0 | CD130: 0
D131: Mon | E131: =SUM(E130:BV130)*1000000 -> 744417
D132: step | E132: 0.01
E133: 0 | F133: =CD121 -> 0.77
D134: Feqn | E134: =E86 -> 2.400 | F134: =E86 -> 2.400
E135: 0 | F135: =CD121 -> 0.77
D136: Veqn | E136: =Ve_c -> 1.3106 | F136: =Ve_c -> 1.3106
E137: 0 | F137: =CD121 -> 0.77
D138: Peqn | E138: =E85 -> 0.109 | F138: =E85 -> 0.109
F152: Note : Ft does not include flexural failure limit, though Feqn does
G153: v_ship, v_ice, Veqn,Pen(n) and Peqn don't include the case that flexural failure happens,though Feqn does

Sheet Flat Vertical Structure
B2: Ice Floe Collision on Flat Structure
H3: Scenario
B4: Ship Main Parameters | F4: units
C5: Case | D5: SN | E5: test | F5: text
C6: Structure Mass | D6: M | E6: 1.00E+09 | F6: kg
B8: Ice Crushing Terms
C9: Ice strength term | D9: Po | E9: 3 | F9: Mpa
C10: Ice exponent (process PA) | D10: ex | E10: -0.1 | F10: nd
C11: Ice Thickness | D11: hi | E11: 1.00 | F11: m
C12: Ice Floe length | D12: li | E12: 10 | F12: m
C13: Ice velocity | D13: vi | E13: -1.00 | F13: m/s
C14: Ice mass | D14: Mi | E14: =E12*E12*hi*0.9*1000 -> 90,000 | F14: kg
C15: phi | D15: f | E15: 90 | F15: deg
C16: phi | D16: f | E16: =E15*deg -> 1.5708 | F16: rad
C17: form 1 | D17: fx | E17: =2+ex -> 1.90 | F17: nd
C18: form 2 | D18: fa | E18: =(2*TAN(E16/2)*E11)^(1+E10) -> 1.8661 | F18: nd
C20: Kinetic Energy | D20: KEe | E20: =E14/2*E13^2 -> 45000 | F20: kg-m2/s2
C21: Impulse | D21: Ie | E21: =E14*(vi-Ve_c) -> -89992 | F21: kg-m/s
C23: Normal Speed at collision end | D23: Ve_c | E23: =vi*Mi/(M+Mi) -> -0.000 | F23: m/s
C24: Effective_mass for collision | D24: Me_c | E24: =1/(1/M+1/Mi) -> 89,992 | F24: kg
C25: Kinetic Energy for collision | D25: KEe_c | E25: =Me_c/2*vi^2 -> 44,996 | F25: kg-m2/s2
B27: Results
C28: pen(n) | D28: zn | E28: =(KEe_c*fx/Po/1000000/fa)^(1/fx) -> 0.111 | F28: m
C29: Nomal Force | D29: Fn | E29: =Po*fa*E28^(fx-1) -> 0.772 | F29: MN
C30: Aveage Pressure | D30: Pav | E30: =E29/E35 -> 3.488 | F30: Mpa
C32: width of patch | D32: w | E32: =E28*2*TAN(E16/2) -> 0.221 | F32: m
C33: Height of patch | D33: h | E33: =E11 -> 1.000 | F33: m | H33: Indentation Geometry
C34: Aspect Ratio | E34: =E32/E33 -> 0.221
C35: Area n | D35: An | E35: =E33*E32 -> 0.221 | F35: m2
C38: FE Patch Values
C39: Width of Patch | D39: wd | E39: =(0.7071*E32) -> 0.157 | F39: * nominal width reduced by 70%
C40: Height of Patch | D40: hd | E40: =E39/E34 -> 0.707
C41: Area | D41: Ad | E41: =E39*E40 -> 0.111
C42: Patch Pressure | D42: Pd | E42: =E29/E41 -> 6.977
B44: Deg to rad
B45: =PI()/180 -> 0.01745329252
B48: Time History of Force
C49: sec | D49: t | E49: 0 | F49: =E49+step -> 0.01 | G49: =F49+step -> 0.02 | H49: 0.03 | I49: 0.04 | J49: 0.05 | K49: 0.06 | L49: 0.07 | M49: 0.08 | N49: 0.09 | O49: 0.1 | P49: 0.11 | Q49: 0.12 | R49: 0.13 | S49: 0.14 | T49: 0.15 | U49: 0.16 | V49: 0.17 | W49: 0.18 | X49: 0.19 | Y49: 0.2 | Z49: 0.21 | AA49: 0.22 | AB49: 0.23 | AC49: 0.24 | AD49: 0.25 | AE49: 0.26 | AF49: 0.27 | AG49: 0.28 | AH49: 0.29 | AI49: 0.3 | AJ49: 0.31 | AK49: 0.32 | AL49: 0.33 | AM49: 0.34 | AN49: 0.35 | AO49: 0.36 | AP49: 0.37 | AQ49: 0.38 | AR49: 0.39 | AS49: 0.4 | AT49: 0.41 | AU49: 0.42 | AV49: 0.43 | AW49: 0.44 | AX49: 0.45 | AY49: 0.46 | AZ49: 0.47 | BA49: 0.48 | BB49: 0.49 | BC49: 0.5 | BD49: 0.51 | BE49: 0.52 | BF49: 0.53 | BG49: 0.54 | BH49: 0.55 | BI49: 0.56 | BJ49: 0.57 | BK49: 0.58 | BL49: 0.59 | BM49: 0.6 | BN49: 0.61 | BO49: 0.62 | BP49: 0.63 | BQ49: 0.64 | BR49: 0.65 | BS49: =BR49+step -> 0.66 | BT49: 0.67 | BU49: 0.68 | BV49: 0.69 | BW49: 0.7 | BX49: 0.71 | BY49: 0.72 | BZ49: 0.73 | CA49: 0.74 | CB49: 0.75 | CC49: 0.76 | CD49: 0.77 | CE49: 0.78 | CF49: 0.79 | CG49: 0.8 | CH49: 0.81 | CI49: 0.82 | CJ49: 0.83 | CK49: 0.84 | CL49: 0.85 | CM49: 0.86 | CN49: 0.87 | CO49: 0.88 | CP49: 0.89 | CQ49: 0.9 | CR49: 0.91 | CS49: 0.92 | CT49: 0.93 | CU49: 0.94 | CV49: 0.95 | CW49: 0.96 | CX49: 0.97 | CY49: 0.98 | CZ49: 0.99 | DA49: 1 | DB49: 1.01 | DC49: 1.02 | DD49: 1.03 | DE49: 1.04 | DF49: 1.05 | DG49: 1.06 | DH49: 1.07 | DI49: 1.08 | DJ49: 1.09 | DK49: 1.1 | DL49: 1.11 | DM49: 1.12 | DN49: 1.13 | DO49: 1.14 | DP49: 1.15 | DQ49: 1.16 | DR49: 1.17 | DS49: 1.18 | DT49: 1.19 | DU49: 1.2 | DV49: 1.21 | DW49: 1.22 | DX49: 1.23
C50: m | D50: x_ship | E50: 0 | F50: =IF(E54>=Ve_c,0,E50+(E53+fxx(E52, M, Po*1000000, fa, fx)*step/2)*step) -> 0.0000 | G50: =IF(F54>=Ve_c,0,F50+(F53+fxx(F52, M, Po*1000000, fa, fx)*step/2)*step) -> -0.0000 | H50: -0.0000 | I50: -0.0000 | J50: -0.0000 | K50: -0.0000 | L50: -0.0000 | M50: -0.0000 | N50: -0.0000 | O50: -0.0000 | P50: -0.0000 | Q50: -0.0000 | R50: -0.0000 | S50: -0.0000 | T50: -0.0000 | U50: -0.0000 | V50: -0.0000 | W50: -0.0000 | X50: 0.0000 | Y50: 0.0000 | Z50: 0.0000 | AA50: 0.0000 | AB50: 0.0000 | AC50: 0.0000 | AD50: 0.0000 | AE50: 0.0000 | AF50: 0.0000 | AG50: 0.0000 | AH50: 0.0000 | AI50: 0.0000 | AJ50: 0.0000 | AK50: 0.0000 | AL50: 0.0000 | AM50: 0.0000 | AN50: 0.0000 | AO50: 0.0000 | AP50: 0.0000 | AQ50: 0.0000 | AR50: 0.0000 | AS50: 0.0000 | AT50: 0.0000 | AU50: 0.0000 | AV50: 0.0000 | AW50: 0.0000 | AX50: 0.0000 | AY50: 0.0000 | AZ50: 0.0000 | BA50: 0.0000 | BB50: 0.0000 | BC50: 0.0000 | BD50: 0.0000 | BE50: 0.0000 | BF50: 0.0000 | BG50: 0.0000 | BH50: 0.0000 | BI50: 0.0000 | BJ50: 0.0000 | BK50: 0.0000 | BL50: 0.0000 | BM50: 0.0000 | BN50: 0.0000 | BO50: 0.0000 | BP50: 0.0000 | BQ50: 0.0000 | BR50: 0.0000 | BS50: =IF(BR54>=Ve_c,0,BR50+(BR53+fxx(BR52, M, Po*1000000, fa, fx)*step/2)*step) -> 0.0000 | BT50: 0.0000 | BU50: 0.0000 | BV50: 0.0000 | BW50: 0.0000 | BX50: 0.0000 | BY50: 0.0000 | BZ50: 0.0000 | CA50: 0.0000 | CB50: 0.0000 | CC50: 0.0000 | CD50: 0.0000 | CE50: 0.0000 | CF50: 0.0000 | CG50: 0.0000 | CH50: 0.0000 | CI50: 0.0000 | CJ50: 0.0000 | CK50: 0.0000 | CL50: 0.0000 | CM50: 0.0000 | CN50: 0.0000 | CO50: 0.0000 | CP50: 0.0000 | CQ50: 0.0000 | CR50: 0.0000 | CS50: 0.0000 | CT50: 0.0000 | CU50: 0.0000 | CV50: 0.0000 | CW50: 0.0000 | CX50: 0.0000 | CY50: 0.0000 | CZ50: 0.0000 | DA50: 0.0000 | DB50: 0.0000 | DC50: 0.0000 | DD50: 0.0000 | DE50: 0.0000 | DF50: 0.0000 | DG50: 0.0000 | DH50: 0.0000 | DI50: 0.0000 | DJ50: 0.0000 | DK50: 0.0000 | DL50: 0.0000 | DM50: 0.0000 | DN50: 0.0000 | DO50: 0.0000 | DP50: 0.0000 | DQ50: 0.0000 | DR50: 0.0000 | DS50: 0.0000 | DT50: 0.0000 | DU50: 0.0000 | DV50: 0.0000 | DW50: 0.0000 | DX50: 0.0000
C51: m | D51: x_ice | E51: 0 | F51: =IF(E54>=Ve_c,0,E51+(E54-fxx(E52, Mi, Po*1000000, fa, fx)*step/2)*step) -> -0.01 | G51: =IF(F54>=Ve_c,0,F51+(F54-fxx(F52, Mi, Po*1000000, fa, fx)*step/2)*step) -> -0.01985212424 | H51: -0.02947902322 | I51: -0.03880531082 | J51: -0.0477599364 | K51: -0.0562762959 | L51: -0.0642923488 | M51: -0.07175077308 | N51: -0.07859913962 | O51: -0.08479009082 | P51: -0.09028151283 | Q51: -0.09503669452 | R51: -0.09902446838 | S51: -0.1022193301 | T51: -0.1046015343 | U51: -0.1061571655 | V51: -0.1068781814 | W51: -0.106762431 | X51: 0 | Y51: 0 | Z51: 0 | AA51: 0 | AB51: 0 | AC51: 0 | AD51: 0 | AE51: 0 | AF51: 0 | AG51: 0 | AH51: 0 | AI51: 0 | AJ51: 0 | AK51: 0 | AL51: 0 | AM51: 0 | AN51: 0 | AO51: 0 | AP51: 0 | AQ51: 0 | AR51: 0 | AS51: 0 | AT51: 0 | AU51: 0 | AV51: 0 | AW51: 0 | AX51: 0 | AY51: 0 | AZ51: 0 | BA51: 0 | BB51: 0 | BC51: 0 | BD51: 0 | BE51: 0 | BF51: 0 | BG51: 0 | BH51: 0 | BI51: 0 | BJ51: 0 | BK51: 0 | BL51: 0 | BM51: 0 | BN51: 0 | BO51: 0 | BP51: 0 | BQ51: 0 | BR51: 0 | BS51: =IF(BR54>=Ve_c,0,BR51+(BR54-fxx(BR52, Mi, Po*1000000, fa, fx)*step/2)*step) -> 0 | BT51: 0 | BU51: 0 | BV51: 0 | BW51: 0 | BX51: 0 | BY51: 0 | BZ51: 0 | CA51: 0 | CB51: 0 | CC51: 0 | CD51: 0 | CE51: 0 | CF51: 0 | CG51: 0 | CH51: 0 | CI51: 0 | CJ51: 0 | CK51: 0 | CL51: 0 | CM51: 0 | CN51: 0 | CO51: 0 | CP51: 0 | CQ51: 0 | CR51: 0 | CS51: 0 | CT51: 0 | CU51: 0 | CV51: 0 | CW51: 0 | CX51: 0 | CY51: 0 | CZ51: 0 | DA51: 0 | DB51: 0 | DC51: 0 | DD51: 0 | DE51: 0 | DF51: 0 | DG51: 0 | DH51: 0 | DI51: 0 | DJ51: 0 | DK51: 0 | DL51: 0 | DM51: 0 | DN51: 0 | DO51: 0 | DP51: 0 | DQ51: 0 | DR51: 0 | DS51: 0 | DT51: 0 | DU51: 0 | DV51: 0 | DW51: 0 | DX51: 0
C52: m | D52: Pen(n) | E52: =E50-E51 -> 0 | F52: 0.01 | G52: 0.01985211093 | H52: 0.02947897633 | I52: 0.03880520329 | J52: 0.04775973479 | K52: 0.05627596076 | L52: 0.06429183511 | M52: 0.07175003065 | N52: 0.07859811355 | O52: 0.08478872193 | P52: 0.09027973817 | Q52: 0.09503444782 | R52: 0.09902168058 | S52: 0.1022159298 | T52: 0.1045974485 | U52: 0.1061523196 | V52: 0.1068725005 | W52: 0.1067558396 | X52: 0 | Y52: 0 | Z52: 0 | AA52: 0 | AB52: 0 | AC52: 0 | AD52: 0 | AE52: 0 | AF52: 0 | AG52: 0 | AH52: 0 | AI52: 0 | AJ52: 0 | AK52: 0 | AL52: 0 | AM52: 0 | AN52: 0 | AO52: 0 | AP52: 0 | AQ52: 0 | AR52: 0 | AS52: 0 | AT52: 0 | AU52: 0 | AV52: 0 | AW52: 0 | AX52: 0 | AY52: 0 | AZ52: 0 | BA52: 0 | BB52: 0 | BC52: 0 | BD52: 0 | BE52: 0 | BF52: 0 | BG52: 0 | BH52: 0 | BI52: 0 | BJ52: 0 | BK52: 0 | BL52: 0 | BM52: 0 | BN52: 0 | BO52: 0 | BP52: 0 | BQ52: =BQ50-BQ51 -> 0 | BR52: 0 | BS52: 0 | BT52: 0 | BU52: 0 | BV52: 0 | BW52: 0 | BX52: 0 | BY52: 0 | BZ52: 0 | CA52: 0 | CB52: 0 | CC52: 0 | CD52: 0 | CE52: 0 | CF52: 0 | CG52: 0 | CH52: 0 | CI52: 0 | CJ52: 0 | CK52: 0 | CL52: 0 | CM52: 0 | CN52: 0 | CO52: 0 | CP52: 0 | CQ52: 0 | CR52: 0 | CS52: 0 | CT52: 0 | CU52: 0 | CV52: 0 | CW52: 0 | CX52: 0 | CY52: 0 | CZ52: 0 | DA52: 0 | DB52: 0 | DC52: 0 | DD52: 0 | DE52: 0 | DF52: 0 | DG52: 0 | DH52: 0 | DI52: 0 | DJ52: 0 | DK52: 0 | DL52: 0 | DM52: 0 | DN52: 0 | DO52: 0 | DP52: 0 | DQ52: 0 | DR52: 0 | DS52: 0 | DT52: 0 | DU52: 0 | DV52: 0 | DW52: 0 | DX52: 0
C53: m/s | D53: v_ship | E53: 0 | F53: =IF(E54>=Ve_c,Ve_c,E53+fxx(E52+(E53-E54)*step, M, Po*1000000, fa, fx)*step) -> -8.87254582e-07 | G53: =IF(F54>=Ve_c,Ve_c,F53+fxx(F52+(F53-F54)*step, M, Po*1000000, fa, fx)*step) -> -2.535582672e-06 | H53: -4.889651325e-06 | I53: -7.905161269e-06 | J53: -1.15406987e-05 | K53: -1.575509061e-05 | L53: -2.0506308e-05 | M53: -2.575098668e-05 | N53: -3.144424433e-05 | O53: -3.753965822e-05 | P53: -4.398933784e-05 | Q53: -5.074405776e-05 | R53: -5.775343016e-05 | S53: -6.496610451e-05 | T53: -7.232998611e-05 | U53: -7.979246751e-05 | V53: -8.730066828e-05 | W53: -9.480167964e-05 | X53: -8.999190073e-05 | Y53: -8.999190073e-05 | Z53: -8.999190073e-05 | AA53: -8.999190073e-05 | AB53: -8.999190073e-05 | AC53: -8.999190073e-05 | AD53: -8.999190073e-05 | AE53: -8.999190073e-05 | AF53: -8.999190073e-05 | AG53: -8.999190073e-05 | AH53: -8.999190073e-05 | AI53: -8.999190073e-05 | AJ53: -8.999190073e-05 | AK53: -8.999190073e-05 | AL53: -8.999190073e-05 | AM53: -8.999190073e-05 | AN53: -8.999190073e-05 | AO53: -8.999190073e-05 | AP53: -8.999190073e-05 | AQ53: -8.999190073e-05 | AR53: -8.999190073e-05 | AS53: -8.999190073e-05 | AT53: -8.999190073e-05 | AU53: -8.999190073e-05 | AV53: -8.999190073e-05 | AW53: -8.999190073e-05 | AX53: -8.999190073e-05 | AY53: -8.999190073e-05 | AZ53: -8.999190073e-05 | BA53: -8.999190073e-05 | BB53: -8.999190073e-05 | BC53: -8.999190073e-05 | BD53: -8.999190073e-05 | BE53: -8.999190073e-05 | BF53: -8.999190073e-05 | BG53: -8.999190073e-05 | BH53: -8.999190073e-05 | BI53: -8.999190073e-05 | BJ53: -8.999190073e-05 | BK53: -8.999190073e-05 | BL53: -8.999190073e-05 | BM53: -8.999190073e-05 | BN53: -8.999190073e-05 | BO53: -8.999190073e-05 | BP53: -8.999190073e-05 | BQ53: -8.999190073e-05 | BR53: -8.999190073e-05 | BS53: =IF(BR54>=Ve_c,Ve_c,BR53+fxx(BR52+(BR53-BR54)*step, M, Po*1000000, fa, fx)*step) -> -8.999190073e-05 | BT53: -8.999190073e-05 | BU53: -8.999190073e-05 | BV53: -8.999190073e-05 | BW53: -8.999190073e-05 | BX53: -8.999190073e-05 | BY53: -8.999190073e-05 | BZ53: -8.999190073e-05 | CA53: -8.999190073e-05 | CB53: -8.999190073e-05 | CC53: -8.999190073e-05 | CD53: -8.999190073e-05 | CE53: -8.999190073e-05 | CF53: -8.999190073e-05 | CG53: -8.999190073e-05 | CH53: -8.999190073e-05 | CI53: -8.999190073e-05 | CJ53: -8.999190073e-05 | CK53: -8.999190073e-05 | CL53: -8.999190073e-05 | CM53: -8.999190073e-05 | CN53: -8.999190073e-05 | CO53: -8.999190073e-05 | CP53: -8.999190073e-05 | CQ53: -8.999190073e-05 | CR53: -8.999190073e-05 | CS53: -8.999190073e-05 | CT53: -8.999190073e-05 | CU53: -8.999190073e-05 | CV53: -8.999190073e-05 | CW53: -8.999190073e-05 | CX53: -8.999190073e-05 | CY53: -8.999190073e-05 | CZ53: -8.999190073e-05 | DA53: -8.999190073e-05 | DB53: -8.999190073e-05 | DC53: -8.999190073e-05 | DD53: -8.999190073e-05 | DE53: -8.999190073e-05 | DF53: -8.999190073e-05 | DG53: -8.999190073e-05 | DH53: -8.999190073e-05 | DI53: -8.999190073e-05 | DJ53: -8.999190073e-05 | DK53: -8.999190073e-05 | DL53: -8.999190073e-05 | DM53: -8.999190073e-05 | DN53: -8.999190073e-05 | DO53: -8.999190073e-05 | DP53: -8.999190073e-05 | DQ53: -8.999190073e-05 | DR53: -8.999190073e-05 | DS53: -8.999190073e-05 | DT53: -8.999190073e-05 | DU53: -8.999190073e-05 | DV53: -8.999190073e-05 | DW53: -8.999190073e-05 | DX53: -8.999190073e-05
C54: m/s | D54: v_ice | E54: =vi -> -1.000 | F54: =IF(E54>=Ve_c,Ve_c,E54-fxx(E52+(E53-E54)*step, Mi, Po*1000000, fa, fx)*step) -> -0.9901416158 | G54: =IF(F54>=Ve_c,Ve_c,F54-fxx(F52+(F53-F54)*step, Mi, Po*1000000, fa, fx)*step) -> -0.9718268592 | H54: -0.9456705408 | I54: -0.9121648748 | J54: -0.8717700145 | K54: -0.8249434377 | L54: -0.7721521334 | M54: -0.7138779258 | N54: -0.6506195074 | O54: -0.5828926865 | P54: -0.5112295796 | Q54: -0.4361771359 | R54: -0.3582952204 | S54: -0.2781543944 | T54: -0.1963334876 | U54: -0.1134170276 | V54: -0.0299925747 | W54: 0.05335199597 | X54: -8.999190073e-05 | Y54: -8.999190073e-05 | Z54: -8.999190073e-05 | AA54: -8.999190073e-05 | AB54: -8.999190073e-05 | AC54: -8.999190073e-05 | AD54: -8.999190073e-05 | AE54: -8.999190073e-05 | AF54: -8.999190073e-05 | AG54: -8.999190073e-05 | AH54: -8.999190073e-05 | AI54: -8.999190073e-05 | AJ54: -8.999190073e-05 | AK54: -8.999190073e-05 | AL54: -8.999190073e-05 | AM54: -8.999190073e-05 | AN54: -8.999190073e-05 | AO54: -8.999190073e-05 | AP54: -8.999190073e-05 | AQ54: -8.999190073e-05 | AR54: -8.999190073e-05 | AS54: -8.999190073e-05 | AT54: -8.999190073e-05 | AU54: -8.999190073e-05 | AV54: -8.999190073e-05 | AW54: -8.999190073e-05 | AX54: -8.999190073e-05 | AY54: -8.999190073e-05 | AZ54: -8.999190073e-05 | BA54: -8.999190073e-05 | BB54: -8.999190073e-05 | BC54: -8.999190073e-05 | BD54: -8.999190073e-05 | BE54: -8.999190073e-05 | BF54: -8.999190073e-05 | BG54: -8.999190073e-05 | BH54: -8.999190073e-05 | BI54: -8.999190073e-05 | BJ54: -8.999190073e-05 | BK54: -8.999190073e-05 | BL54: -8.999190073e-05 | BM54: -8.999190073e-05 | BN54: -8.999190073e-05 | BO54: -8.999190073e-05 | BP54: -8.999190073e-05 | BQ54: -8.999190073e-05 | BR54: -8.999190073e-05 | BS54: =IF(BR54>=Ve_c,Ve_c,BR54-fxx(BR52+(BR53-BR54)*step, Mi, Po*1000000, fa, fx)*step) -> -8.999190073e-05 | BT54: -8.999190073e-05 | BU54: -8.999190073e-05 | BV54: -8.999190073e-05 | BW54: -8.999190073e-05 | BX54: -8.999190073e-05 | BY54: -8.999190073e-05 | BZ54: -8.999190073e-05 | CA54: -8.999190073e-05 | CB54: -8.999190073e-05 | CC54: -8.999190073e-05 | CD54: -8.999190073e-05 | CE54: -8.999190073e-05 | CF54: -8.999190073e-05 | CG54: -8.999190073e-05 | CH54: -8.999190073e-05 | CI54: -8.999190073e-05 | CJ54: -8.999190073e-05 | CK54: -8.999190073e-05 | CL54: -8.999190073e-05 | CM54: -8.999190073e-05 | CN54: -8.999190073e-05 | CO54: -8.999190073e-05 | CP54: -8.999190073e-05 | CQ54: -8.999190073e-05 | CR54: -8.999190073e-05 | CS54: -8.999190073e-05 | CT54: -8.999190073e-05 | CU54: -8.999190073e-05 | CV54: -8.999190073e-05 | CW54: -8.999190073e-05 | CX54: -8.999190073e-05 | CY54: -8.999190073e-05 | CZ54: -8.999190073e-05 | DA54: -8.999190073e-05 | DB54: -8.999190073e-05 | DC54: -8.999190073e-05 | DD54: -8.999190073e-05 | DE54: -8.999190073e-05 | DF54: -8.999190073e-05 | DG54: -8.999190073e-05 | DH54: -8.999190073e-05 | DI54: -8.999190073e-05 | DJ54: -8.999190073e-05 | DK54: -8.999190073e-05 | DL54: -8.999190073e-05 | DM54: -8.999190073e-05 | DN54: -8.999190073e-05 | DO54: -8.999190073e-05 | DP54: -8.999190073e-05 | DQ54: -8.999190073e-05 | DR54: -8.999190073e-05 | DS54: -8.999190073e-05 | DT54: -8.999190073e-05 | DU54: -8.999190073e-05 | DV54: -8.999190073e-05 | DW54: -8.999190073e-05 | DX54: -8.999190073e-05
C55: m/s2 | D55: a_ship | E55: =fxx(E52, M, Po*1000000, fa, fx) -> 0 | F55: =fxx(F52, M, Po*1000000, fa, fx) -> -8.87254582e-05 | G55: =fxx(G52, M, Po*1000000, fa, fx) -> -0.0001644652974 | H55: -0.0002347520586 | I55: -0.0003006416993 | J55: -0.000362413166 | K55: -0.000420086647 | L55: -0.0004735746978 | M55: -0.0005227428877 | N55: -0.0005674389734 | O55: -0.0006075087407 | P55: -0.0006428053942 | Q55: -0.0006731954948 | R55: -0.0006985628959 | S55: -0.0007188114329 | T55: -0.0007338667859 | U55: -0.0007436777543 | V55: -0.0007482170911 | W55: -0.00074748198 | X55: 0 | Y55: 0 | Z55: 0 | AA55: 0 | AB55: 0 | AC55: 0 | AD55: 0 | AE55: 0 | AF55: 0 | AG55: 0 | AH55: 0 | AI55: 0 | AJ55: 0 | AK55: 0 | AL55: 0 | AM55: 0 | AN55: 0 | AO55: 0 | AP55: 0 | AQ55: 0 | AR55: 0 | AS55: 0 | AT55: 0 | AU55: 0 | AV55: 0 | AW55: 0 | AX55: 0 | AY55: 0 | AZ55: 0 | BA55: 0 | BB55: 0 | BC55: 0 | BD55: 0 | BE55: 0 | BF55: 0 | BG55: 0 | BH55: 0 | BI55: 0 | BJ55: 0 | BK55: 0 | BL55: 0 | BM55: 0 | BN55: 0 | BO55: 0 | BP55: 0 | BQ55: 0 | BR55: 0 | BS55: =fxx(BS52, M, Po*1000000, fa, fx) -> 0 | BT55: 0 | BU55: 0 | BV55: 0 | BW55: 0 | BX55: 0 | BY55: 0 | BZ55: 0 | CA55: 0 | CB55: 0 | CC55: 0 | CD55: 0 | CE55: 0 | CF55: 0 | CG55: 0 | CH55: 0 | CI55: 0 | CJ55: 0 | CK55: 0 | CL55: 0 | CM55: 0 | CN55: 0 | CO55: 0 | CP55: 0 | CQ55: 0 | CR55: 0 | CS55: 0 | CT55: 0 | CU55: 0 | CV55: 0 | CW55: 0 | CX55: 0 | CY55: 0 | CZ55: 0 | DA55: 0 | DB55: 0 | DC55: 0 | DD55: 0 | DE55: 0 | DF55: 0 | DG55: 0 | DH55: 0 | DI55: 0 | DJ55: 0 | DK55: 0 | DL55: 0 | DM55: 0 | DN55: 0 | DO55: 0 | DP55: 0 | DQ55: 0 | DR55: 0 | DS55: 0 | DT55: 0 | DU55: 0 | DV55: 0 | DW55: 0 | DX55: 0
C56: m/s2 | D56: a_ice | E56: =-fxx(E52, Mi, Po*1000000, fa, fx) -> 0 | F56: =-fxx(F52, Mi, Po*1000000, fa, fx) -> 0.9858384244 | G56: =-fxx(G52, Mi, Po*1000000, fa, fx) -> 1.827392193 | H56: 2.608356207 | I56: 3.340463326 | J56: 4.026812956 | K56: 4.667629411 | L56: 5.261941087 | M56: 5.808254308 | N56: 6.304877482 | O56: 6.750097119 | P56: 7.142282158 | Q56: 7.479949943 | R56: 7.761809954 | S56: 7.986793699 | T56: 8.154075399 | U56: 8.263086159 | V56: 8.313523234 | W56: 8.305355334 | X56: 0 | Y56: 0 | Z56: 0 | AA56: 0 | AB56: 0 | AC56: 0 | AD56: 0 | AE56: 0 | AF56: 0 | AG56: 0 | AH56: 0 | AI56: 0 | AJ56: 0 | AK56: 0 | AL56: 0 | AM56: 0 | AN56: 0 | AO56: 0 | AP56: 0 | AQ56: 0 | AR56: 0 | AS56: 0 | AT56: 0 | AU56: 0 | AV56: 0 | AW56: 0 | AX56: 0 | AY56: 0 | AZ56: 0 | BA56: 0 | BB56: 0 | BC56: 0 | BD56: 0 | BE56: 0 | BF56: 0 | BG56: 0 | BH56: 0 | BI56: 0 | BJ56: 0 | BK56: 0 | BL56: 0 | BM56: 0 | BN56: 0 | BO56: 0 | BP56: 0 | BQ56: 0 | BR56: 0 | BS56: =-fxx(BS52, Mi, Po*1000000, fa, fx) -> 0 | BT56: 0 | BU56: 0 | BV56: 0 | BW56: 0 | BX56: 0 | BY56: 0 | BZ56: 0 | CA56: 0 | CB56: 0 | CC56: 0 | CD56: 0 | CE56: 0 | CF56: 0 | CG56: 0 | CH56: 0 | CI56: 0 | CJ56: 0 | CK56: 0 | CL56: 0 | CM56: 0 | CN56: 0 | CO56: 0 | CP56: 0 | CQ56: 0 | CR56: 0 | CS56: 0 | CT56: 0 | CU56: 0 | CV56: 0 | CW56: 0 | CX56: 0 | CY56: 0 | CZ56: 0 | DA56: 0 | DB56: 0 | DC56: 0 | DD56: 0 | DE56: 0 | DF56: 0 | DG56: 0 | DH56: 0 | DI56: 0 | DJ56: 0 | DK56: 0 | DL56: 0 | DM56: 0 | DN56: 0 | DO56: 0 | DP56: 0 | DQ56: 0 | DR56: 0 | DS56: 0 | DT56: 0 | DU56: 0 | DV56: 0 | DW56: 0 | DX56: 0
C57: MN | D57: Ft | E57: =-E55*M/1000000 -> 0 | F57: =F56*Mi/1000000 -> 0.0887254582 | G57: =G56*Mi/1000000 -> 0.1644652974 | H57: 0.2347520586 | I57: 0.3006416993 | J57: 0.362413166 | K57: 0.420086647 | L57: 0.4735746978 | M57: 0.5227428877 | N57: 0.5674389734 | O57: 0.6075087407 | P57: 0.6428053942 | Q57: 0.6731954948 | R57: 0.6985628959 | S57: 0.7188114329 | T57: 0.7338667859 | U57: 0.7436777543 | V57: 0.7482170911 | W57: 0.74748198 | X57: 0 | Y57: 0 | Z57: 0 | AA57: 0 | AB57: 0 | AC57: 0 | AD57: 0 | AE57: 0 | AF57: 0 | AG57: 0 | AH57: 0 | AI57: 0 | AJ57: 0 | AK57: 0 | AL57: 0 | AM57: 0 | AN57: 0 | AO57: 0 | AP57: 0 | AQ57: 0 | AR57: 0 | AS57: 0 | AT57: 0 | AU57: 0 | AV57: 0 | AW57: 0 | AX57: 0 | AY57: 0 | AZ57: 0 | BA57: 0 | BB57: 0 | BC57: 0 | BD57: 0 | BE57: 0 | BF57: 0 | BG57: 0 | BH57: 0 | BI57: 0 | BJ57: 0 | BK57: 0 | BL57: 0 | BM57: 0 | BN57: 0 | BO57: 0 | BP57: 0 | BQ57: 0 | BR57: 0 | BS57: =BS56*Mi/1000000 -> 0 | BT57: 0 | BU57: 0 | BV57: 0 | BW57: 0 | BX57: 0 | BY57: 0 | BZ57: 0 | CA57: 0 | CB57: 0 | CC57: 0 | CD57: 0 | CE57: 0 | CF57: 0 | CG57: 0 | CH57: 0 | CI57: 0 | CJ57: 0 | CK57: 0 | CL57: 0 | CM57: 0 | CN57: 0 | CO57: 0 | CP57: 0 | CQ57: 0 | CR57: 0 | CS57: 0 | CT57: 0 | CU57: 0 | CV57: 0 | CW57: 0 | CX57: 0 | CY57: 0 | CZ57: 0 | DA57: 0 | DB57: 0 | DC57: 0 | DD57: 0 | DE57: 0 | DF57: 0 | DG57: 0 | DH57: 0 | DI57: 0 | DJ57: 0 | DK57: 0 | DL57: 0 | DM57: 0 | DN57: 0 | DO57: 0 | DP57: 0 | DQ57: 0 | DR57: 0 | DS57: 0 | DT57: 0 | DU57: 0 | DV57: 0 | DW57: 0 | DX57: 0
D58: dMom | E58: =(E57+F57)*step/2 -> 0.000443627291 | F58: =IF(G57=0,0,(F57+G57)*step/2) -> 0.001265953778 | G58: 0.00199608678 | H58: 0.002676968789 | I58: 0.003315274327 | J58: 0.003912499065 | K58: 0.004468306724 | L58: 0.004981587928 | M58: 0.005450909306 | N58: 0.005874738571 | O58: 0.006251570675 | P58: 0.006580004445 | Q58: 0.006858791954 | R58: 0.007086871644 | S58: 0.007263391094 | T58: 0.007387722701 | U58: 0.007459474227 | V58: 0.007478495356 | W58: 0 | X58: 0 | Y58: 0 | Z58: 0 | AA58: 0 | AB58: 0 | AC58: 0 | AD58: 0 | AE58: 0 | AF58: 0 | AG58: 0 | AH58: 0 | AI58: 0 | AJ58: 0 | AK58: 0 | AL58: =IF(AM57=0,0,(AL57+AM57)*step/2) -> 0 | AM58: 0 | AN58: 0 | AO58: 0 | AP58: 0 | AQ58: 0 | AR58: 0 | AS58: 0 | AT58: 0 | AU58: 0 | AV58: 0 | AW58: 0 | AX58: 0 | AY58: 0 | AZ58: 0 | BA58: 0 | BB58: 0 | BC58: 0 | BD58: 0 | BE58: 0 | BF58: 0 | BG58: 0 | BH58: 0 | BI58: 0 | BJ58: 0 | BK58: 0 | BL58: 0 | BM58: 0 | BN58: 0 | BO58: 0 | BP58: 0 | BQ58: 0 | BR58: =IF(BS57=0,0,(BR57+BS57)*step/2) -> 0 | BS58: 0 | BT58: 0 | BU58: 0 | BV58: 0 | BW58: 0 | BX58: 0 | BY58: 0 | BZ58: 0 | CA58: 0 | CB58: 0 | CC58: 0 | CD58: 0 | CE58: 0 | CF58: 0 | CG58: 0 | CH58: 0 | CI58: 0 | CJ58: 0 | CK58: 0 | CL58: 0 | CM58: 0 | CN58: 0 | CO58: 0 | CP58: 0 | CQ58: 0 | CR58: 0 | CS58: 0 | CT58: 0 | CU58: 0 | CV58: 0 | CW58: 0 | CX58: =IF(CY57=0,0,(CX57+CY57)*step/2) -> 0 | CY58: 0 | CZ58: 0 | DA58: 0 | DB58: 0 | DC58: 0 | DD58: 0 | DE58: 0 | DF58: 0 | DG58: 0 | DH58: 0 | DI58: 0 | DJ58: 0 | DK58: 0 | DL58: 0 | DM58: 0 | DN58: 0 | DO58: 0 | DP58: 0 | DQ58: 0 | DR58: 0 | DS58: 0 | DT58: 0 | DU58: 0 | DV58: 0 | DW58: 0 | DX58: 0
D59: Mon | E59: =SUM(E58:BV58)*1000000 -> 90752
D60: step | E60: 0.01
E61: 0 | F61: =DX49 -> 1.23
D62: Feqn | E62: =E29 -> 0.772 | F62: =E29 -> 0.772
E63: 0 | F63: =DX49 -> 1.23
D64: Veqn | E64: =Ve_c -> -8.999190073e-05 | F64: =Ve_c -> -8.999190073e-05
E65: 0 | F65: =DX49 -> 1.23
D66: Peqn | E66: =E28 -> 0.111 | F66: =E28 -> 0.111

Sheet Cylindrical Structure
B2: Ice Floe Collision on Vertical Cylinder
B4: Structure Parameters | F4: units | H4: Scenario
C5: Case | D5: SN | E5: test | F5: text
C6: Stucture Effective Mass | D6: M | E6: 4,000,000 | F6: kg
B8: IceParameters
C9: Ice strength term | D9: Po | E9: 3 | F9: Mpa
C10: Ice exponent (process PA) | D10: ex | E10: -0.1 | F10: nd
C11: Ice Thickness | D11: hi | E11: 1.00 | F11: m
C12: Ice Floe length | D12: li | E12: 10 | F12: m
C13: Ice velocity | D13: vi | E13: -1.00 | F13: m/s
C14: Ice mass | D14: Mi | E14: =E12*E12*hi*0.9*1000 -> 90,000 | F14: kg
C15: Strut Radius | D15: rp | E15: 5 | F15: m
C16: form 1 | D16: fx | E16: =1.5+0.5*ex -> 1.45 | F16: nd
C17: form 2 | D17: fa | E17: =(2*E11*SQRT(2*E15))^(1+E10) -> 5.2593 | F17: nd
C19: Kinetic Energy | D19: KEe | E19: =E14/2*E13^2 -> 45000 | F19: kg-m2/s2
C20: Impulse | D20: Ie | E20: =E14*(vi-Ve_c) -> -88020 | F20: kg-m/s
C22: Normal Speed at collision end | D22: Ve_c | E22: =vi*Mi/(M+Mi) -> -0.022 | F22: m/s
C23: Effective_mass for collision | D23: Me_c | E23: =1/(1/M+1/Mi) -> 88,020 | F23: kg
C24: Kinetic Energy for collision | D24: KEe_c | E24: =Me_c/2*vi^2 -> 44,010 | F24: kg-m2/s2
B26: Results
C27: pen(n) | D27: zn | E27: =(KEe_c*fx/Po/1000000/fa)^(1/fx) -> 0.022 | F27: m
C28: Nomal Force | D28: Fn | E28: =Po*fa*E27^(fx-1) -> 2.853 | F28: MN
C29: Aveage Pressure | D29: Pav | E29: =E28/E34 -> 3.017 | F29: Mpa
H30: Indentation Geometry
C31: width of patch | D31: w | E31: =2*SQRT(2*E27*E15) -> 0.946 | F31: m
C32: Height of patch | D32: h | E32: =E11 -> 1.000 | F32: m
C33: Aspect Ratio | E33: =E31/E32 -> 0.946
C34: Area n | D34: An | E34: =E31*E32 -> 0.946 | F34: m2
C37: FE Patch Values
C38: Width of Patch | D38: wd | E38: =(0.7071*E31) -> 0.669 | F38: * nominal width reduced by 70%
C39: Height of Patch | D39: hd | E39: =E38/E33 -> 0.707
C40: Area | D40: Ad | E40: =E38*E39 -> 0.473
C41: Patch Pressure | D41: Pd | E41: =E28/E40 -> 6.034
B43: Deg to rad
B44: =PI()/180 -> 0.01745329252
B47: Time History of Force
C48: sec | D48: t | E48: 0 | F48: =E48+step -> 0.002 | G48: =F48+step -> 0.004 | H48: 0.006 | I48: 0.008 | J48: 0.01 | K48: 0.012 | L48: 0.014 | M48: 0.016 | N48: 0.018 | O48: 0.02 | P48: 0.022 | Q48: 0.024 | R48: 0.026 | S48: 0.028 | T48: 0.03 | U48: 0.032 | V48: 0.034 | W48: 0.036 | X48: 0.038 | Y48: 0.04 | Z48: 0.042 | AA48: 0.044 | AB48: 0.046 | AC48: 0.048 | AD48: 0.05 | AE48: 0.052 | AF48: 0.054 | AG48: 0.056 | AH48: 0.058 | AI48: 0.06 | AJ48: 0.062 | AK48: 0.064 | AL48: 0.066 | AM48: 0.068 | AN48: 0.07 | AO48: 0.072 | AP48: 0.074 | AQ48: 0.076 | AR48: 0.078 | AS48: 0.08 | AT48: 0.082 | AU48: 0.084 | AV48: 0.086 | AW48: 0.088 | AX48: 0.09 | AY48: 0.092 | AZ48: 0.094 | BA48: 0.096 | BB48: 0.098 | BC48: 0.1 | BD48: 0.102 | BE48: 0.104 | BF48: 0.106 | BG48: 0.108 | BH48: 0.11 | BI48: 0.112 | BJ48: 0.114 | BK48: 0.116 | BL48: 0.118 | BM48: 0.12 | BN48: 0.122 | BO48: 0.124 | BP48: 0.126 | BQ48: 0.128 | BR48: 0.13 | BS48: =BR48+step -> 0.132 | BT48: 0.134 | BU48: 0.136 | BV48: 0.138 | BW48: 0.14 | BX48: 0.142 | BY48: 0.144 | BZ48: 0.146 | CA48: 0.148 | CB48: 0.15 | CC48: 0.152 | CD48: 0.154 | CE48: 0.156 | CF48: 0.158 | CG48: 0.16 | CH48: 0.162 | CI48: 0.164 | CJ48: 0.166 | CK48: 0.168 | CL48: 0.17 | CM48: 0.172 | CN48: 0.174 | CO48: 0.176 | CP48: 0.178 | CQ48: 0.18 | CR48: 0.182 | CS48: 0.184 | CT48: 0.186 | CU48: 0.188 | CV48: 0.19 | CW48: 0.192 | CX48: 0.194 | CY48: 0.196 | CZ48: 0.198 | DA48: 0.2 | DB48: 0.202 | DC48: 0.204 | DD48: 0.206 | DE48: 0.208 | DF48: 0.21 | DG48: 0.212 | DH48: 0.214 | DI48: 0.216 | DJ48: 0.218 | DK48: 0.22 | DL48: 0.222 | DM48: 0.224 | DN48: 0.226 | DO48: 0.228 | DP48: 0.23 | DQ48: 0.232 | DR48: 0.234 | DS48: 0.236 | DT48: 0.238 | DU48: 0.24 | DV48: 0.242 | DW48: 0.244 | DX48: 0.246
C49: m | D49: x_ship | E49: 0 | F49: =IF(E53>=Ve_c,0,E49+(E52+fxx(E51, M, Po*1000000, fa, fx)*step/2)*step) -> 0.0000 | G49: =IF(F53>=Ve_c,0,F49+(F52+fxx(F51, M, Po*1000000, fa, fx)*step/2)*step) -> -0.0000 | H49: -0.0000 | I49: -0.0000 | J49: -0.0000 | K49: -0.0000 | L49: -0.0000 | M49: -0.0000 | N49: -0.0001 | O49: -0.0001 | P49: -0.0001 | Q49: -0.0001 | R49: -0.0001 | S49: -0.0002 | T49: -0.0002 | U49: -0.0002 | V49: -0.0003 | W49: -0.0003 | X49: -0.0004 | Y49: -0.0004 | Z49: 0.0000 | AA49: 0.0000 | AB49: 0.0000 | AC49: 0.0000 | AD49: 0.0000 | AE49: 0.0000 | AF49: 0.0000 | AG49: 0.0000 | AH49: 0.0000 | AI49: 0.0000 | AJ49: 0.0000 | AK49: 0.0000 | AL49: 0.0000 | AM49: 0.0000 | AN49: 0.0000 | AO49: 0.0000 | AP49: 0.0000 | AQ49: 0.0000 | AR49: 0.0000 | AS49: 0.0000 | AT49: 0.0000 | AU49: 0.0000 | AV49: 0.0000 | AW49: 0.0000 | AX49: 0.0000 | AY49: 0.0000 | AZ49: 0.0000 | BA49: 0.0000 | BB49: 0.0000 | BC49: 0.0000 | BD49: 0.0000 | BE49: 0.0000 | BF49: 0.0000 | BG49: 0.0000 | BH49: 0.0000 | BI49: 0.0000 | BJ49: 0.0000 | BK49: 0.0000 | BL49: 0.0000 | BM49: 0.0000 | BN49: 0.0000 | BO49: 0.0000 | BP49: 0.0000 | BQ49: 0.0000 | BR49: 0.0000 | BS49: =IF(BR53>=Ve_c,0,BR49+(BR52+fxx(BR51, M, Po*1000000, fa, fx)*step/2)*step) -> 0.0000 | BT49: 0.0000 | BU49: 0.0000 | BV49: 0.0000 | BW49: 0.0000 | BX49: 0.0000 | BY49: 0.0000 | BZ49: 0.0000 | CA49: 0.0000 | CB49: 0.0000 | CC49: 0.0000 | CD49: 0.0000 | CE49: 0.0000 | CF49: 0.0000 | CG49: 0.0000 | CH49: 0.0000 | CI49: 0.0000 | CJ49: 0.0000 | CK49: 0.0000 | CL49: 0.0000 | CM49: 0.0000 | CN49: 0.0000 | CO49: 0.0000 | CP49: 0.0000 | CQ49: 0.0000 | CR49: 0.0000 | CS49: 0.0000 | CT49: 0.0000 | CU49: 0.0000 | CV49: 0.0000 | CW49: 0.0000 | CX49: 0.0000 | CY49: 0.0000 | CZ49: 0.0000 | DA49: 0.0000 | DB49: 0.0000 | DC49: 0.0000 | DD49: 0.0000 | DE49: 0.0000 | DF49: 0.0000 | DG49: 0.0000 | DH49: 0.0000 | DI49: 0.0000 | DJ49: 0.0000 | DK49: 0.0000 | DL49: 0.0000 | DM49: 0.0000 | DN49: 0.0000 | DO49: 0.0000 | DP49: 0.0000 | DQ49: 0.0000 | DR49: 0.0000 | DS49: 0.0000 | DT49: 0.0000 | DU49: 0.0000 | DV49: 0.0000 | DW49: 0.0000 | DX49: 0.0000
C50: m | D50: x_ice | E50: 0 | F50: =IF(E53>=Ve_c,0,E50+(E53-fxx(E51, Mi, Po*1000000, fa, fx)*step/2)*step) -> -0.002 | G50: =IF(F53>=Ve_c,0,F50+(F53-fxx(F51, Mi, Po*1000000, fa, fx)*step/2)*step) -> -0.003935816929 | H50: -0.005805856883 | I50: -0.007601101551 | J50: -0.009313749175 | K50: -0.01093707032 | L50: -0.01246521298 | M50: -0.01389305836 | N50: -0.01521611737 | O50: -0.01643045522 | P50: -0.01753263518 | Q50: -0.01851967591 | R50: -0.01938901852 | S50: -0.0201385011 | T50: -0.02076633887 | U50: -0.02127110881 | V50: -0.02165173802 | W50: -0.0219074953 | X50: -0.02203798533 | Y50: -0.02204314545 | Z50: 0 | AA50: 0 | AB50: 0 | AC50: 0 | AD50: 0 | AE50: 0 | AF50: 0 | AG50: 0 | AH50: 0 | AI50: 0 | AJ50: 0 | AK50: 0 | AL50: 0 | AM50: 0 | AN50: 0 | AO50: 0 | AP50: 0 | AQ50: 0 | AR50: 0 | AS50: 0 | AT50: 0 | AU50: 0 | AV50: 0 | AW50: 0 | AX50: 0 | AY50: 0 | AZ50: 0 | BA50: 0 | BB50: 0 | BC50: 0 | BD50: 0 | BE50: 0 | BF50: 0 | BG50: 0 | BH50: 0 | BI50: 0 | BJ50: 0 | BK50: 0 | BL50: 0 | BM50: 0 | BN50: 0 | BO50: 0 | BP50: 0 | BQ50: 0 | BR50: 0 | BS50: =IF(BR53>=Ve_c,0,BR50+(BR53-fxx(BR51, Mi, Po*1000000, fa, fx)*step/2)*step) -> 0 | BT50: 0 | BU50: 0 | BV50: 0 | BW50: 0 | BX50: 0 | BY50: 0 | BZ50: 0 | CA50: 0 | CB50: 0 | CC50: 0 | CD50: 0 | CE50: 0 | CF50: 0 | CG50: 0 | CH50: 0 | CI50: 0 | CJ50: 0 | CK50: 0 | CL50: 0 | CM50: 0 | CN50: 0 | CO50: 0 | CP50: 0 | CQ50: 0 | CR50: 0 | CS50: 0 | CT50: 0 | CU50: 0 | CV50: 0 | CW50: 0 | CX50: 0 | CY50: 0 | CZ50: 0 | DA50: 0 | DB50: 0 | DC50: 0 | DD50: 0 | DE50: 0 | DF50: 0 | DG50: 0 | DH50: 0 | DI50: 0 | DJ50: 0 | DK50: 0 | DL50: 0 | DM50: 0 | DN50: 0 | DO50: 0 | DP50: 0 | DQ50: 0 | DR50: 0 | DS50: 0 | DT50: 0 | DU50: 0 | DV50: 0 | DW50: 0 | DX50: 0
C51: m | D51: Pen(n) | E51: =E49-E50 -> 0 | F51: 0.002 | G51: 0.00393437281 | H51: 0.005801488662 | I51: 0.007592126336 | J51: 0.009298308532 | K51: 0.0109131544 | L51: 0.01243068027 | M51: 0.01384565217 | N51: 0.01515348001 | O51: 0.01635014046 | P51: 0.01743211947 | Q51: 0.01839636861 | R51: 0.01924027143 | S51: 0.01996161738 | T51: 0.0205585815 | U51: 0.02102970875 | V51: 0.02137390213 | W51: 0.02159041395 | X51: 0.02167884 | Y51: 0.02163911622 | Z51: 0 | AA51: 0 | AB51: 0 | AC51: 0 | AD51: 0 | AE51: 0 | AF51: 0 | AG51: 0 | AH51: 0 | AI51: 0 | AJ51: 0 | AK51: 0 | AL51: 0 | AM51: 0 | AN51: 0 | AO51: 0 | AP51: 0 | AQ51: 0 | AR51: 0 | AS51: 0 | AT51: 0 | AU51: 0 | AV51: 0 | AW51: 0 | AX51: 0 | AY51: 0 | AZ51: 0 | BA51: 0 | BB51: 0 | BC51: 0 | BD51: 0 | BE51: 0 | BF51: 0 | BG51: 0 | BH51: 0 | BI51: 0 | BJ51: 0 | BK51: 0 | BL51: 0 | BM51: 0 | BN51: 0 | BO51: 0 | BP51: 0 | BQ51: =BQ49-BQ50 -> 0 | BR51: 0 | BS51: 0 | BT51: 0 | BU51: 0 | BV51: 0 | BW51: 0 | BX51: 0 | BY51: 0 | BZ51: 0 | CA51: 0 | CB51: 0 | CC51: 0 | CD51: 0 | CE51: 0 | CF51: 0 | CG51: 0 | CH51: 0 | CI51: 0 | CJ51: 0 | CK51: 0 | CL51: 0 | CM51: 0 | CN51: 0 | CO51: 0 | CP51: 0 | CQ51: 0 | CR51: 0 | CS51: 0 | CT51: 0 | CU51: 0 | CV51: 0 | CW51: 0 | CX51: 0 | CY51: 0 | CZ51: 0 | DA51: 0 | DB51: 0 | DC51: 0 | DD51: 0 | DE51: 0 | DF51: 0 | DG51: 0 | DH51: 0 | DI51: 0 | DJ51: 0 | DK51: 0 | DL51: 0 | DM51: 0 | DN51: 0 | DO51: 0 | DP51: 0 | DQ51: 0 | DR51: 0 | DS51: 0 | DT51: 0 | DU51: 0 | DV51: 0 | DW51: 0 | DX51: 0
C52: m/s | D52: v_ship | E52: 0 | F52: =IF(E53>=Ve_c,Ve_c,E52+fxx(E51+(E52-E53)*step, M, Po*1000000, fa, fx)*step) -> -0.0004813730288 | G52: =IF(F53>=Ve_c,Ve_c,F52+fxx(F51+(F52-F53)*step, M, Po*1000000, fa, fx)*step) -> -0.001135701564 | H52: -0.001914827491 | I52: -0.002794030216 | J52: -0.00375705234 | K52: -0.004791900295 | L52: -0.005889079597 | M52: -0.007040703388 | N52: -0.008239985994 | O52: -0.009480930273 | P52: -0.01075812206 | Q52: -0.01206658804 | R52: -0.01340169328 | S52: -0.01475906446 | T52: -0.01613453053 | U52: -0.01752407507 | V52: -0.01892379691 | W52: -0.02032987638 | X52: -0.02173854521 | Y52: -0.02314605875 | Z52: -0.02200488998 | AA52: -0.02200488998 | AB52: -0.02200488998 | AC52: -0.02200488998 | AD52: -0.02200488998 | AE52: -0.02200488998 | AF52: -0.02200488998 | AG52: -0.02200488998 | AH52: -0.02200488998 | AI52: -0.02200488998 | AJ52: -0.02200488998 | AK52: -0.02200488998 | AL52: -0.02200488998 | AM52: -0.02200488998 | AN52: -0.02200488998 | AO52: -0.02200488998 | AP52: -0.02200488998 | AQ52: -0.02200488998 | AR52: -0.02200488998 | AS52: -0.02200488998 | AT52: -0.02200488998 | AU52: -0.02200488998 | AV52: -0.02200488998 | AW52: -0.02200488998 | AX52: -0.02200488998 | AY52: -0.02200488998 | AZ52: -0.02200488998 | BA52: -0.02200488998 | BB52: -0.02200488998 | BC52: -0.02200488998 | BD52: -0.02200488998 | BE52: -0.02200488998 | BF52: -0.02200488998 | BG52: -0.02200488998 | BH52: -0.02200488998 | BI52: -0.02200488998 | BJ52: -0.02200488998 | BK52: -0.02200488998 | BL52: -0.02200488998 | BM52: -0.02200488998 | BN52: -0.02200488998 | BO52: -0.02200488998 | BP52: -0.02200488998 | BQ52: -0.02200488998 | BR52: -0.02200488998 | BS52: =IF(BR53>=Ve_c,Ve_c,BR52+fxx(BR51+(BR52-BR53)*step, M, Po*1000000, fa, fx)*step) -> -0.02200488998 | BT52: -0.02200488998 | BU52: -0.02200488998 | BV52: -0.02200488998 | BW52: -0.02200488998 | BX52: -0.02200488998 | BY52: -0.02200488998 | BZ52: -0.02200488998 | CA52: -0.02200488998 | CB52: -0.02200488998 | CC52: -0.02200488998 | CD52: -0.02200488998 | CE52: -0.02200488998 | CF52: -0.02200488998 | CG52: -0.02200488998 | CH52: -0.02200488998 | CI52: -0.02200488998 | CJ52: -0.02200488998 | CK52: -0.02200488998 | CL52: -0.02200488998 | CM52: -0.02200488998 | CN52: -0.02200488998 | CO52: -0.02200488998 | CP52: -0.02200488998 | CQ52: -0.02200488998 | CR52: -0.02200488998 | CS52: -0.02200488998 | CT52: -0.02200488998 | CU52: -0.02200488998 | CV52: -0.02200488998 | CW52: -0.02200488998 | CX52: -0.02200488998 | CY52: -0.02200488998 | CZ52: -0.02200488998 | DA52: -0.02200488998 | DB52: -0.02200488998 | DC52: -0.02200488998 | DD52: -0.02200488998 | DE52: -0.02200488998 | DF52: -0.02200488998 | DG52: -0.02200488998 | DH52: -0.02200488998 | DI52: -0.02200488998 | DJ52: -0.02200488998 | DK52: -0.02200488998 | DL52: -0.02200488998 | DM52: -0.02200488998 | DN52: -0.02200488998 | DO52: -0.02200488998 | DP52: -0.02200488998 | DQ52: -0.02200488998 | DR52: -0.02200488998 | DS52: -0.02200488998 | DT52: -0.02200488998 | DU52: -0.02200488998 | DV52: -0.02200488998 | DW52: -0.02200488998 | DX52: -0.02200488998
C53: m/s | D53: v_ice | E53: =vi -> -1.000 | F53: =IF(E53>=Ve_c,Ve_c,E53-fxx(E51+(E52-E53)*step, Mi, Po*1000000, fa, fx)*step) -> -0.9786056432 | G53: =IF(F53>=Ve_c,Ve_c,F53-fxx(F51+(F52-F53)*step, Mi, Po*1000000, fa, fx)*step) -> -0.9495243749 | H53: -0.914896556 | I53: -0.8758208793 | J53: -0.833019896 | K53: -0.7870266535 | L53: -0.738263129 | M53: -0.6870798494 | N53: -0.6337784003 | O53: -0.5786253212 | P53: -0.5218612418 | Q53: -0.4637071981 | R53: -0.4043691877 | S53: -0.3440415794 | T53: -0.2829097541 | U53: -0.2211522192 | V53: -0.1589423595 | W53: -0.0964499387 | X53: -0.03384243507 | Y53: 0.02871372236 | Z53: -0.02200488998 | AA53: -0.02200488998 | AB53: -0.02200488998 | AC53: -0.02200488998 | AD53: -0.02200488998 | AE53: -0.02200488998 | AF53: -0.02200488998 | AG53: -0.02200488998 | AH53: -0.02200488998 | AI53: -0.02200488998 | AJ53: -0.02200488998 | AK53: -0.02200488998 | AL53: -0.02200488998 | AM53: -0.02200488998 | AN53: -0.02200488998 | AO53: -0.02200488998 | AP53: -0.02200488998 | AQ53: -0.02200488998 | AR53: -0.02200488998 | AS53: -0.02200488998 | AT53: -0.02200488998 | AU53: -0.02200488998 | AV53: -0.02200488998 | AW53: -0.02200488998 | AX53: -0.02200488998 | AY53: -0.02200488998 | AZ53: -0.02200488998 | BA53: -0.02200488998 | BB53: -0.02200488998 | BC53: -0.02200488998 | BD53: -0.02200488998 | BE53: -0.02200488998 | BF53: -0.02200488998 | BG53: -0.02200488998 | BH53: -0.02200488998 | BI53: -0.02200488998 | BJ53: -0.02200488998 | BK53: -0.02200488998 | BL53: -0.02200488998 | BM53: -0.02200488998 | BN53: -0.02200488998 | BO53: -0.02200488998 | BP53: -0.02200488998 | BQ53: -0.02200488998 | BR53: -0.02200488998 | BS53: =IF(BR53>=Ve_c,Ve_c,BR53-fxx(BR51+(BR52-BR53)*step, Mi, Po*1000000, fa, fx)*step) -> -0.02200488998 | BT53: -0.02200488998 | BU53: -0.02200488998 | BV53: -0.02200488998 | BW53: -0.02200488998 | BX53: -0.02200488998 | BY53: -0.02200488998 | BZ53: -0.02200488998 | CA53: -0.02200488998 | CB53: -0.02200488998 | CC53: -0.02200488998 | CD53: -0.02200488998 | CE53: -0.02200488998 | CF53: -0.02200488998 | CG53: -0.02200488998 | CH53: -0.02200488998 | CI53: -0.02200488998 | CJ53: -0.02200488998 | CK53: -0.02200488998 | CL53: -0.02200488998 | CM53: -0.02200488998 | CN53: -0.02200488998 | CO53: -0.02200488998 | CP53: -0.02200488998 | CQ53: -0.02200488998 | CR53: -0.02200488998 | CS53: -0.02200488998 | CT53: -0.02200488998 | CU53: -0.02200488998 | CV53: -0.02200488998 | CW53: -0.02200488998 | CX53: -0.02200488998 | CY53: -0.02200488998 | CZ53: -0.02200488998 | DA53: -0.02200488998 | DB53: -0.02200488998 | DC53: -0.02200488998 | DD53: -0.02200488998 | DE53: -0.02200488998 | DF53: -0.02200488998 | DG53: -0.02200488998 | DH53: -0.02200488998 | DI53: -0.02200488998 | DJ53: -0.02200488998 | DK53: -0.02200488998 | DL53: -0.02200488998 | DM53: -0.02200488998 | DN53: -0.02200488998 | DO53: -0.02200488998 | DP53: -0.02200488998 | DQ53: -0.02200488998 | DR53: -0.02200488998 | DS53: -0.02200488998 | DT53: -0.02200488998 | DU53: -0.02200488998 | DV53: -0.02200488998 | DW53: -0.02200488998 | DX53: -0.02200488998
C54: m/s2 | D54: a_ship | E54: =fxx(E51, M, Po*1000000, fa, fx) -> 0 | F54: =fxx(F51, M, Po*1000000, fa, fx) -> -0.2406865144 | G54: =fxx(G51, M, Po*1000000, fa, fx) -> -0.3263489645 | H54: -0.3886699917 | I54: -0.4386840066 | J54: -0.4805848082 | K54: -0.5164947297 | L54: -0.5476599252 | M54: -0.5748827763 | N54: -0.5987131964 | O54: -0.6195451036 | P54: -0.6376697961 | Q54: -0.6533075932 | R54: -0.66662761 | S54: -0.6777606281 | T54: -0.686807731 | U54: -0.6938462184 | V54: -0.6989336933 | W54: -0.702110868 | X54: -0.7034034231 | Y54: -0.7028231259 | Z54: 0 | AA54: 0 | AB54: 0 | AC54: 0 | AD54: 0 | AE54: 0 | AF54: 0 | AG54: 0 | AH54: 0 | AI54: 0 | AJ54: 0 | AK54: 0 | AL54: 0 | AM54: 0 | AN54: 0 | AO54: 0 | AP54: 0 | AQ54: 0 | AR54: 0 | AS54: 0 | AT54: 0 | AU54: 0 | AV54: 0 | AW54: 0 | AX54: 0 | AY54: 0 | AZ54: 0 | BA54: 0 | BB54: 0 | BC54: 0 | BD54: 0 | BE54: 0 | BF54: 0 | BG54: 0 | BH54: 0 | BI54: 0 | BJ54: 0 | BK54: 0 | BL54: 0 | BM54: 0 | BN54: 0 | BO54: 0 | BP54: 0 | BQ54: 0 | BR54: 0 | BS54: =fxx(BS51, M, Po*1000000, fa, fx) -> 0 | BT54: 0 | BU54: 0 | BV54: 0 | BW54: 0 | BX54: 0 | BY54: 0 | BZ54: 0 | CA54: 0 | CB54: 0 | CC54: 0 | CD54: 0 | CE54: 0 | CF54: 0 | CG54: 0 | CH54: 0 | CI54: 0 | CJ54: 0 | CK54: 0 | CL54: 0 | CM54: 0 | CN54: 0 | CO54: 0 | CP54: 0 | CQ54: 0 | CR54: 0 | CS54: 0 | CT54: 0 | CU54: 0 | CV54: 0 | CW54: 0 | CX54: 0 | CY54: 0 | CZ54: 0 | DA54: 0 | DB54: 0 | DC54: 0 | DD54: 0 | DE54: 0 | DF54: 0 | DG54: 0 | DH54: 0 | DI54: 0 | DJ54: 0 | DK54: 0 | DL54: 0 | DM54: 0 | DN54: 0 | DO54: 0 | DP54: 0 | DQ54: 0 | DR54: 0 | DS54: 0 | DT54: 0 | DU54: 0 | DV54: 0 | DW54: 0 | DX54: 0
C55: m/s2 | D55: a_ice | E55: =-fxx(E51, Mi, Po*1000000, fa, fx) -> 0 | F55: =-fxx(F51, Mi, Po*1000000, fa, fx) -> 10.69717842 | G55: =-fxx(G51, Mi, Po*1000000, fa, fx) -> 14.50439842 | H55: 17.27422185 | I55: 19.49706696 | J55: 21.35932481 | K55: 22.95532132 | L55: 24.34044112 | M55: 25.55034561 | N55: 26.60947539 | O55: 27.53533794 | P55: 28.34087983 | Q55: 29.03589303 | R55: 29.62789378 | S55: 30.12269458 | T55: 30.52478805 | U55: 30.83760971 | V55: 31.0637197 | W55: 31.20492747 | X55: 31.26237436 | Y55: 31.23658338 | Z55: 0 | AA55: 0 | AB55: 0 | AC55: 0 | AD55: 0 | AE55: 0 | AF55: 0 | AG55: 0 | AH55: 0 | AI55: 0 | AJ55: 0 | AK55: 0 | AL55: 0 | AM55: 0 | AN55: 0 | AO55: 0 | AP55: 0 | AQ55: 0 | AR55: 0 | AS55: 0 | AT55: 0 | AU55: 0 | AV55: 0 | AW55: 0 | AX55: 0 | AY55: 0 | AZ55: 0 | BA55: 0 | BB55: 0 | BC55: 0 | BD55: 0 | BE55: 0 | BF55: 0 | BG55: 0 | BH55: 0 | BI55: 0 | BJ55: 0 | BK55: 0 | BL55: 0 | BM55: 0 | BN55: 0 | BO55: 0 | BP55: 0 | BQ55: 0 | BR55: 0 | BS55: =-fxx(BS51, Mi, Po*1000000, fa, fx) -> 0 | BT55: 0 | BU55: 0 | BV55: 0 | BW55: 0 | BX55: 0 | BY55: 0 | BZ55: 0 | CA55: 0 | CB55: 0 | CC55: 0 | CD55: 0 | CE55: 0 | CF55: 0 | CG55: 0 | CH55: 0 | CI55: 0 | CJ55: 0 | CK55: 0 | CL55: 0 | CM55: 0 | CN55: 0 | CO55: 0 | CP55: 0 | CQ55: 0 | CR55: 0 | CS55: 0 | CT55: 0 | CU55: 0 | CV55: 0 | CW55: 0 | CX55: 0 | CY55: 0 | CZ55: 0 | DA55: 0 | DB55: 0 | DC55: 0 | DD55: 0 | DE55: 0 | DF55: 0 | DG55: 0 | DH55: 0 | DI55: 0 | DJ55: 0 | DK55: 0 | DL55: 0 | DM55: 0 | DN55: 0 | DO55: 0 | DP55: 0 | DQ55: 0 | DR55: 0 | DS55: 0 | DT55: 0 | DU55: 0 | DV55: 0 | DW55: 0 | DX55: 0
C56: MN | D56: Ft | E56: =-E54*M/1000000 -> 0 | F56: =F55*Mi/1000000 -> 0.9627460576 | G56: =G55*Mi/1000000 -> 1.305395858 | H56: 1.554679967 | I56: 1.754736026 | J56: 1.922339233 | K56: 2.065978919 | L56: 2.190639701 | M56: 2.299531105 | N56: 2.394852785 | O56: 2.478180415 | P56: 2.550679184 | Q56: 2.613230373 | R56: 2.66651044 | S56: 2.711042512 | T56: 2.747230924 | U56: 2.775384873 | V56: 2.795734773 | W56: 2.808443472 | X56: 2.813613693 | Y56: 2.811292504 | Z56: 0 | AA56: 0 | AB56: 0 | AC56: 0 | AD56: 0 | AE56: 0 | AF56: 0 | AG56: 0 | AH56: 0 | AI56: 0 | AJ56: 0 | AK56: 0 | AL56: 0 | AM56: 0 | AN56: 0 | AO56: 0 | AP56: 0 | AQ56: 0 | AR56: 0 | AS56: 0 | AT56: 0 | AU56: 0 | AV56: 0 | AW56: 0 | AX56: 0 | AY56: 0 | AZ56: 0 | BA56: 0 | BB56: 0 | BC56: 0 | BD56: 0 | BE56: 0 | BF56: 0 | BG56: 0 | BH56: 0 | BI56: 0 | BJ56: 0 | BK56: 0 | BL56: 0 | BM56: 0 | BN56: 0 | BO56: 0 | BP56: 0 | BQ56: 0 | BR56: 0 | BS56: =BS55*Mi/1000000 -> 0 | BT56: 0 | BU56: 0 | BV56: 0 | BW56: 0 | BX56: 0 | BY56: 0 | BZ56: 0 | CA56: 0 | CB56: 0 | CC56: 0 | CD56: 0 | CE56: 0 | CF56: 0 | CG56: 0 | CH56: 0 | CI56: 0 | CJ56: 0 | CK56: 0 | CL56: 0 | CM56: 0 | CN56: 0 | CO56: 0 | CP56: 0 | CQ56: 0 | CR56: 0 | CS56: 0 | CT56: 0 | CU56: 0 | CV56: 0 | CW56: 0 | CX56: 0 | CY56: 0 | CZ56: 0 | DA56: 0 | DB56: 0 | DC56: 0 | DD56: 0 | DE56: 0 | DF56: 0 | DG56: 0 | DH56: 0 | DI56: 0 | DJ56: 0 | DK56: 0 | DL56: 0 | DM56: 0 | DN56: 0 | DO56: 0 | DP56: 0 | DQ56: 0 | DR56: 0 | DS56: 0 | DT56: 0 | DU56: 0 | DV56: 0 | DW56: 0 | DX56: 0
D57: dMom | E57: =(E56+F56)*step/2 -> 0.0009627460576 | F57: =IF(G56=0,0,(F56+G56)*step/2) -> 0.002268141916 | G57: 0.002860075825 | H57: 0.003309415993 | I57: 0.003677075259 | J57: 0.003988318152 | K57: 0.00425661862 | L57: 0.004490170806 | M57: 0.00469438389 | N57: 0.0048730332 | O57: 0.005028859599 | P57: 0.005163909557 | Q57: 0.005279740813 | R57: 0.005377552952 | S57: 0.005458273437 | T57: 0.005522615798 | U57: 0.005571119647 | V57: 0.005604178245 | W57: 0.005622057165 | X57: 0.005624906196 | Y57: 0 | Z57: 0 | AA57: 0 | AB57: 0 | AC57: 0 | AD57: 0 | AE57: 0 | AF57: 0 | AG57: 0 | AH57: 0 | AI57: 0 | AJ57: 0 | AK57: 0 | AL57: =IF(AM56=0,0,(AL56+AM56)*step/2) -> 0 | AM57: 0 | AN57: 0 | AO57: 0 | AP57: 0 | AQ57: 0 | AR57: 0 | AS57: 0 | AT57: 0 | AU57: 0 | AV57: 0 | AW57: 0 | AX57: 0 | AY57: 0 | AZ57: 0 | BA57: 0 | BB57: 0 | BC57: 0 | BD57: 0 | BE57: 0 | BF57: 0 | BG57: 0 | BH57: 0 | BI57: 0 | BJ57: 0 | BK57: 0 | BL57: 0 | BM57: 0 | BN57: 0 | BO57: 0 | BP57: 0 | BQ57: 0 | BR57: =IF(BS56=0,0,(BR56+BS56)*step/2) -> 0 | BS57: 0 | BT57: 0 | BU57: 0 | BV57: 0 | BW57: 0 | BX57: 0 | BY57: 0 | BZ57: 0 | CA57: 0 | CB57: 0 | CC57: 0 | CD57: 0 | CE57: 0 | CF57: 0 | CG57: 0 | CH57: 0 | CI57: 0 | CJ57: 0 | CK57: 0 | CL57: 0 | CM57: 0 | CN57: 0 | CO57: 0 | CP57: 0 | CQ57: 0 | CR57: 0 | CS57: 0 | CT57: 0 | CU57: 0 | CV57: 0 | CW57: 0 | CX57: =IF(CY56=0,0,(CX56+CY56)*step/2) -> 0 | CY57: 0 | CZ57: 0 | DA57: 0 | DB57: 0 | DC57: 0 | DD57: 0 | DE57: 0 | DF57: 0 | DG57: 0 | DH57: 0 | DI57: 0 | DJ57: 0 | DK57: 0 | DL57: 0 | DM57: 0 | DN57: 0 | DO57: 0 | DP57: 0 | DQ57: 0 | DR57: 0 | DS57: 0 | DT57: 0 | DU57: 0 | DV57: 0 | DW57: 0 | DX57: 0
D58: Mon | E58: =SUM(E57:BV57)*1000000 -> 89633
D59: step | E59: 0.002
E60: 0 | F60: =DX48 -> 0.246
D61: Feqn | E61: =E28 -> 2.853 | F61: =E28 -> 2.853
E62: 0 | F62: =DX48 -> 0.246
D63: Veqn | E63: =Ve_c -> -0.02200488998 | F63: =Ve_c -> -0.02200488998
E64: 0 | F64: =DX48 -> 0.246
D65: Peqn | E65: =E27 -> 0.022 | F65: =E27 -> 0.022
